Workbook

Sheet Příkaz
K1: Příloha OD č. 2/2020 Evidenční číslo:
B2: CESTOVNÍ PŘÍKAZ K USKUTEČNĚNÍ ZAHRANIČNÍ PRACOVNÍ CESTY
B4: Jméno a příjmení: | K4: Útvar:
B6: Zahájení cesty | D6: Datum: | H6: Místo:
B8: Místo konání: | X8: Stát, místo, pořadatel
B10: Účel:
B12: Očekávaný přínos/výstup:
B14: Ukončení cesty | D14: Datum: | H14: Místo:
B16: Jízdné hradí:
B18: Návrh na určení dopravního prostředku: | G18: A | I18: =IF(G18<>"",(VLOOKUP(G18,List1!B3:C11,2,FALSE)),"") -> Autobus | N18: =IF(G18="V","Jízdenku zařizuje:",IF(G18="A","Jízdenku zařizuje:",IF(G18="L","Letenku zařizuje:",""))) -> Jízdenku zařizuje: | R18: ZO PF UK
B20: Předpokládaná výše jízdních výdajů za jehož použití mají být poskytnuty náhrady jízdních výdajů:
B22: Úhrada ostatních výdajů (PF UK, grant nebo projekt) | K22: Předpokládáná výše ostatních výdajů v Kč
B24: Ubytování hradí: | X24: (PF UK, grant nebo projekt) | Z24: částka v Kč
Z25: částka v Kč
B26: Stravné hradí: | X26: (PF UK, grant nebo projekt) | Z26: částka v Kč
Z27: částka v Kč
B28: Nutné vedl. výd. hradí: | X28: (PF UK, grant nebo projekt) | Z28: částka v Kč
B30: Nutné vedlejší výdaje specifikace: | X30: Specifikace
B32: ="Cestovní pojištění ("&List1!R2&"), zajištuje a hradí:" -> Cestovní pojištění (1 den), zajištuje a hradí: | G32: ZO PF UK | K32: Předpokládáné výdaje celkem | R32: =IF(OR(G18="SV",G18="SJ"),R24+R26+R28,R20+R24+R26+R28) -> 0
B34: Žádám o zálohu: | D34: Ne | G34: Výše zálohy: | J34: 500 | M34: GBP | X34: =IF(D34<>"",IF(J34<>"",(IF(M34="CZK",1,VLOOKUP(TODAY(),'Kurzy CNB'!$A$1:$AH$156,VLOOKUP(M34,List1!$S$4:$T$36,2,FALSE),TRUE)))*J34,""),"") -> 14782.5 | Z34: Výše v Kč podle naposledy aktualizovaného kurzu
D35: =IF(AND(D34="Ano, na bank. Účet",M34<>"CZK"),"Na účet lze pouze CZK","") ->  | O35: =IF(D34="Ano, na bank. Účet","Číslo bankovního účtu","Datum vyplacení") -> Datum vyplacení
B37: POUŽITÍ SOUKROMÉHO VOZIDLA NA PRACOVNÍ CESTU
B38: Vyplní řidič vozidla (zaměstnanec) před cestou.
B40: Vlastník vozidla:
B42: Řidič vozidla: | F42: =IF(D4="","",D4) -> 
B44: RZ vozidla: | J44: Typ vozu:
B46: Datum povinn. proškolení řidiče: | J46: Číslo havarijní pojistky:
B48: Spolucestující:
B50: Prohlašuji, že vozidlo použité na této služební cestě | H50: NENÍ | J50: v evidenci plátců silniční daně pro rok 2020.
B51: Prohlašuji, že mám platný řidičský průkaz.
B52: Přílohy: | C52: - kopie velkého technického průkazu (datum aktuální technické kontroly) - kopie dokladu o zaplacení havarijního pojištění (pokud jste už neodevzdali na ekonomickém oddělení.)
C54: =IF(OR(G18="V",G18="A - VV",G18="V - VV",G18="L - VV",G18="A - VV",G18="A",G18="L",)," - doklad o předpokládané výši jízdních výdajů za dopravní prostředek, za jehož použití mají být poskytnuty náhrady jízdních výdajů","") -> - doklad o předpokládané výši jízdních výdajů za dopravní prostředek, za jehož použití mají být poskytnuty náhrady jízdních výdajů
B55: ="Žádám o náhradu jízdních výdajů "&IF(G18="VV","za každý kilometr jízdy sazbou základní náhrady a náhradou za spotřebované pohonné hmoty podle zákonných sazeb platných v době konání pracovní cesty.",IF(OR(G18="V - VV",G18="V"),"ve výši odpovídající ceně jízdenky za vlak do výše " & R20 &" Kč.",IF(OR(G18="A - VV",G18="A"),"ve výši odpovídající ceně jízdenky za autobus do výše " &R20&" Kč.",IF(OR(G18="L - VV",G18="L"),"ve výši odpovídající ceně letenky do výše " &R20&" Kč.","- NE.")))) -> Žádám o náhradu jízdních výdajů ve výši odpovídající ceně jízdenky za autobus do výše Kč.
B58: V Praze dne | J58: Podpis zaměstnance
B68: Poznámka schvalujících
B70: Podpis řešitele grantu nebo projektu | K70: Podpis přímého nadřízeného
B74: Podpis vedoucího zahraničního oddělení | K74: Podpis tajemníka (správce rozpočtu)
B78: Podpis vedoucího ekonomického oddělení | K78: Podpis děkana

Sheet Vyúčtování test (hidden)
B2: VYÚČTOVÁNÍ PRACOVNÍ CESTY
B3: Datum | D3: Odjezd - příjezd | G3: Použitý dopr. prostředek2) | H3: Vzdálenost v km 1) | I3: Jízdné v případě AUV | J3: Jízdné a místní přeprava | K3: Stravné | L3: Noc- ležné | M3: Nutné vedlejší výdaje | N3: Celkem | R3: Upraveno
F4: v hod. | J4: Kč | K4: Kč | L4: Kč | M4: Kč | N4: Kč | R4: Kč | Y4: Vozidlo
B5: 2020-01-02 | C5: Odjezd | F5: 10:00:00 | I5: =IF(G5="VV",ROUND(H5*$Z$14+H5*$Z$18,2),"") ->  | K5: =R26 -> 691 | N5: =(N(I5)+J5+L5+M5) -> 0 | Q5: =VLOOKUP(P27,$AC$12:$AG$16,Q27+1,FALSE) -> 91 | T5: =IF(B5="","",IF(B7="","konec","průběh")) -> průběh | U5: =VLOOKUP(IF(B5="",0,(IF(B5=B3,1000,100)+IF(B5=B7,10,1))),List1!$B$22:$D$26,3,FALSE) -> 4 | V5: =B5 -> 2020-01-02 | W5: =IF(V5<>0,B5+F5,"") -> 2020-01-02T10:00:00 | Y5: SPZ
C6: Příjezd | F6: 12:00:00 | V6: =B5 -> 2020-01-02 | W6: =IF(V5<>0,B5+F6,"") -> 2020-01-02T12:00:00 | Y6: Palivo | Z6: nafta | AD6: =AD8 -> 43832
B7: 2020-01-05 | C7: Odjezd | F7: 15:00:00 | I7: =IF(G7="VV",ROUND(H7*$Z$14+H7*$Z$18,2),"") ->  | N7: =(N(I7)+J7+L7+M7) -> 0 | Q7: =VLOOKUP(P28,$AC$12:$AG$16,Q28+1,FALSE) -> 200 | T7: =IF(B7="","",IF(B9="","konec","průběh")) -> konec | U7: =VLOOKUP(IF(B7="",0,(IF(B7=B5,1000,100)+IF(B7=B9,10,1))),List1!$B$22:$D$26,3,FALSE) -> 4 | V7: =B7 -> 2020-01-05 | W7: =IF(V7<>0,B7+F7,"") -> 2020-01-05T15:00:00 | Y7: spotřeba 1 | Z7: 3.1
C8: Příjezd | F8: 20:00:00 | V8: =B7 -> 2020-01-05 | W8: =IF(V7<>0,B7+F8,"") -> 2020-01-05T20:00:00 | Y8: spotřeba 2 | AD8: =MIN(B5:B20) -> 2020-01-02 | AE8: =MIN(W5:W20) -> 2020-01-02T10:00:00
C9: Odjezd | I9: =IF(G9="VV",ROUND(H9*$Z$14+H9*$Z$18,2),"") ->  | N9: =(N(I9)+J9+L9+M9) -> 0 | T9: =IF(B9="","",IF(B11="","konec","průběh")) ->  | U9: =VLOOKUP(IF(B9="",0,(IF(B9=B7,1000,100)+IF(B9=B11,10,1))),List1!$B$22:$D$26,3,FALSE) -> 5 | V9: =B9 -> 00:00:00 | W9: =IF(V9<>0,B9+F9,"") ->  | Y9: spotřeba 3 | AD9: =MAX(B5:B20) -> 2020-01-05 | AE9: =MAX(W5:W20) -> 2020-01-05T20:00:00
C10: Příjezd | V10: =B9 -> 00:00:00 | W10: =IF(V9<>0,B9+F10,"") ->  | Y10: spotřeba 4
C11: Odjezd | I11: =IF(G11="VV",ROUND(H11*$Z$14+H11*$Z$18,2),"") ->  | N11: =(N(I11)+J11+L11+M11) -> 0 | T11: =IF(B11="","",IF(B13="","konec","průběh")) ->  | U11: =VLOOKUP(IF(B11="",0,(IF(B11=B9,1000,100)+IF(B11=B13,10,1))),List1!$B$22:$D$26,3,FALSE) -> 5 | V11: =B11 -> 00:00:00 | W11: =IF(V11<>0,B11+F11,"") ->  | Y11: Průměr - použitá spotřeba | Z11: =ROUND(AVERAGE(Z7:Z10),2) -> 3.1 | AD11: 0 - 5 hod | AE11: 5 až 12 hod. | AF11: 12 až 18 hod. | AG11: více než 18 hod.
C12: Příjezd | V12: =B11 -> 00:00:00 | W12: =IF(V11<>0,B11+F12,"") ->  | Y12: Cena paliva z dokladu | AA12: Pokud nezadáte cenu paliva z dokladu, bude použita cena z vyhlášky | AC12: počet jídel | AD12: 0 | AE12: I | AF12: II | AG12: III
C13: Odjezd | I13: =IF(G13="VV",ROUND(H13*$Z$14+H13*$Z$18,2),"") ->  | N13: =(N(I13)+J13+L13+M13) -> 0 | T13: =IF(B13="","",IF(B15="","konec","průběh")) ->  | U13: =VLOOKUP(IF(B13="",0,(IF(B13=B11,1000,100)+IF(B13=B15,10,1))),List1!$B$22:$D$26,3,FALSE) -> 5 | V13: =B13 -> 00:00:00 | W13: =IF(V13<>0,B13+F13,"") ->  | Y13: Náhrady | AC13: 0 | AD13: 0 | AE13: 90 | AF13: 140 | AG13: 200
C14: Příjezd | V14: =B13 -> 00:00:00 | W14: =IF(V13<>0,B13+F14,"") ->  | Y14: amortizace za km | Z14: 4.1 | AC14: 1 | AD14: 0 | AE14: =AE13*0.3 -> 27 | AF14: =0.65*AF13 -> 91 | AG14: =0.75*AG13 -> 150
C15: Odjezd | I15: =IF(G15="VV",ROUND(H15*$Z$14+H15*$Z$18,2),"") ->  | N15: =(N(I15)+J15+L15+M15) -> 0 | T15: =IF(B15="","",IF(B17="","konec","průběh")) ->  | U15: =VLOOKUP(IF(B15="",0,(IF(B15=B13,1000,100)+IF(B15=B17,10,1))),List1!$B$22:$D$26,3,FALSE) -> 5 | V15: =B15 -> 00:00:00 | W15: =IF(V15<>0,B15+F15,"") ->  | Y15: benzin 95 oktanů | Z15: 33.1 | AC15: 2 | AD15: 0 | AE15: 0 | AF15: =0.3*AF13 -> 42 | AG15: =0.5*AG13 -> 100
C16: Příjezd | V16: =B15 -> 00:00:00 | W16: =IF(V15<>0,B15+F16,"") ->  | Y16: benzin 98 oktanů | Z16: 37.1 | AC16: 3 | AD16: 0 | AE16: 0 | AF16: 0 | AG16: =0.25*AG13 -> 50
C17: Odjezd | I17: =IF(G17="VV",ROUND(H17*$Z$14+H17*$Z$18,2),"") ->  | N17: 0 | T17: =IF(B17="","",IF(B19="","konec","průběh")) ->  | U17: =VLOOKUP(IF(B17="",0,(IF(B17=B15,1000,100)+IF(B17=B19,10,1))),List1!$B$22:$D$26,3,FALSE) -> 5 | V17: =B17 -> 00:00:00 | W17: =IF(V17<>0,B17+F17,"") ->  | Y17: nafta | Z17: 33.6
C18: Příjezd | V18: =B17 -> 00:00:00 | W18: =IF(V17<>0,B17+F18,"") ->  | Y18: náhrada za km paliva | Z18: =ROUND(IF(Z12=0,(VLOOKUP(Z6,Y15:Z17,2,FALSE)),Z12)*Z11/100,4) -> 1.0416 | AA18: =IF(Z12<>"","použita cena z dokladu","použita cena z vyhlášky") -> použita cena z vyhlášky
C19: Odjezd | I19: =IF(G19="VV",ROUND(H19*$Z$14+H19*$Z$18,2),"") ->  | N19: 0 | T19: =IF(B19="","",IF(B21="","konec","průběh")) ->  | U19: =VLOOKUP(IF(B19="",0,(IF(B19=B17,1000,100)+IF(B19=B21,10,1))),List1!$B$22:$D$26,3,FALSE) -> 5 | V19: =B19 -> 00:00:00 | W19: =IF(V19<>0,B19+F19,"") -> 
C20: Příjezd | V20: =B19 -> 00:00:00 | W20: =IF(V19<>0,B19+F20,"") -> 
H21: Celkem | I21: =SUM(I5:I20) -> 0 | J21: =SUM(J5:J20) -> 0 | K21: =SUM(K5:K20) -> 691 | L21: =IF(E23="ano",0,SUM(L5:L20)) -> 0 | M21: =SUM(M5:M20) -> 0 | N21: =SUM(I21:M21) -> 691
B22: Strava poskytnuta bezplatně | E22: ano | H22: Záloha
B23: Ubytování poskytnuto bezplatně:* | E23: ano | H23: =IF((N21-N22)<0,"Přeplatek (účtovatel vrátí)", "Doplatek (účtovateli bude doplaceno)") -> Doplatek (účtovateli bude doplaceno) | N23: =ABS(CEILING(N21-N22,1)) -> 691
P24: =IF(O28="",1,IF((O27+O28)<=5/24,1,IF((O27+O28)<=12/24,2,IF((O27+O28)<=18/24,3,4)))) -> 4 | Q24: =VLOOKUP((IF((P28+P27)>3,3,(P28+P27))),$AC$12:$AG$16,P24+1,FALSE) -> 150
B25: V - Vlak | C25: SV - služební vozidlo | E25: V - VV - vlastní vozidlo s náhradou výdajů za vlak | K25: Bezplatně poskytnutá strava | P25: počet jídel | Q25: skupina | R25: Celkem | Y25: Přehled EU norem používaných v TP
B26: A - autobus | C26: CV - spolujízda | E26: A - VV - vlastní vozidlo s náhradou výdajů za autobus | K26: Datum | L26: snídaně | M26: oběd | N26: večeře | O26: doba | R26: =SUM(R27:R43) -> 691 | Y26: 80/1268/EHS | Z26: arit.průměr | AA26: 3 údaje v TP
B27: L - letadlo | C27: VV - vlastní vozidlo | E27: L - VV - vlastní vozidlo s náhradou výdajů za letadlo | K27: =IF(AD8<>0,AD8,"") -> 2020-01-02 | L27: ano | O27: =IF(K27<>"",IF(K28<>0,K27+1-AE8,AE9-AE8),"") -> 0.5833333333 | P27: =IF($E$22="ne",0,IF(LEFT(L27,1)="A",1,0)+IF(LEFT(M27,1)="A",1,0)+IF(LEFT(N27,1)="A",1,0)) -> 1 | Q27: =IF(OR(O27<=5/24+1/24/60/60/100,O27=""),1,IF(O27<=12/24,2,IF(O27<=18/24,3,4))) -> 3 | R27: =IF(AND(K29="",(Q7+Q5)<Q24),0,Q5) -> 91 | Y27: 93/116/ES | Z27: třetí údaj
K28: =IF(($AD$8+List1!A2)<=$AD$9,$AD$8+List1!A2,"") -> 2020-01-03 | O28: =IF(K28<>"",IF(K29<>"",1,$AE$9-K28),"") -> 1 | P28: 0 | Q28: =IF(OR(O28<=5/24+1/24/60/60/100,O28=""),1,IF(O28<=12/24,2,IF(O28<=18/24,3,4))) -> 4 | R28: =IF(AND(K29="",(Q7+Q5)<Q24),Q24,Q7) -> 200 | Y28: 1999/100/ES | Z28: třetí údaj
K29: =IF(($AD$8+List1!A3)<=$AD$9,$AD$8+List1!A3,"") -> 2020-01-04 | O29: 1 | P29: 0 | Q29: 4 | R29: =VLOOKUP(P29,$AC$12:$AG$16,Q29+1,FALSE) -> 200 | Y29: 2004/3/ES | Z29: třetí údaj
B30: Zdroj financování (PF UK, grant, jiný zdroj): | F30: Zpráva o výsledku pracovní cesty byla podána dne: | K30: =IF(($AD$8+List1!A4)<=$AD$9,$AD$8+List1!A4,"") -> 2020-01-05 | O30: 0.8333333333 | P30: 0 | Q30: 4 | R30: 200 | Y30: EU 692/2008 | Z30: třetí údaj
K31: =IF(($AD$8+List1!A5)<=$AD$9,$AD$8+List1!A5,"") ->  | P31: 0 | Q31: 1 | R31: 0 | Y31: EU 692/2008A,…F | Z31: třetí údaj
K32: =IF(($AD$8+List1!A6)<=$AD$9,$AD$8+List1!A6,"") ->  | P32: 0 | Q32: 1 | R32: 0 | Y32: EU/566/2011 | Z32: třetí údaj
K33: =IF(($AD$8+List1!A7)<=$AD$9,$AD$8+List1!A7,"") ->  | P33: 0 | Q33: 1 | R33: 0 | Y33: 2007/46/ES | Z33: třetí údaj
B34: Číslo bankovního účtu pro zasílání náhrad účtovateli: | K34: =IF(($AD$8+List1!A8)<=$AD$9,$AD$8+List1!A8,"") ->  | P34: 0 | Q34: 1 | R34: 0 | Y34: EHK 101,R101.00 | Z34: třetí údaj
K35: =IF(($AD$8+List1!A9)<=$AD$9,$AD$8+List1!A9,"") ->  | P35: 0 | Q35: 1 | R35: 0 | Y35: 459/2012/EU | Z35: třetí údaj
K36: =IF(($AD$8+List1!A10)<=$AD$9,$AD$8+List1!A10,"") ->  | P36: 0 | Q36: 1 | R36: 0 | Y36: 630/2012/EU | Z36: třetí údaj
B37: Prohlašuji, že jsem všechny údaje uvedl úplně a správně. | K37: =IF(($AD$8+List1!A11)<=$AD$9,$AD$8+List1!A11,"") ->  | P37: 0 | Q37: 1 | R37: 0 | Y37: EU195/2013 | Z37: třetí údaj
K38: =IF(($AD$8+List1!A12)<=$AD$9,$AD$8+List1!A12,"") ->  | P38: 0 | Q38: 1 | R38: 0 | Y38: 715/2007/ES | Z38: třetí údaj
K39: =IF(($AD$8+List1!A13)<=$AD$9,$AD$8+List1!A13,"") ->  | P39: 0 | Q39: 1 | R39: 0 | Y39: EU136/2014 | Z39: třetí údaj
K40: =IF(($AD$8+List1!A14)<=$AD$9,$AD$8+List1!A14,"") ->  | P40: 0 | Q40: 1 | R40: 0 | Y40: EU2016/646 | Z40: třetí údaj
K41: =IF(($AD$8+List1!A15)<=$AD$9,$AD$8+List1!A15,"") ->  | P41: 0 | Q41: 1 | R41: 0 | Y41: EU2017/1347 | Z41: třetí údaj
B42: Datum a podpis účtovatele | K42: =IF(($AD$8+List1!A16)<=$AD$9,$AD$8+List1!A16,"") ->  | P42: 0 | Q42: 1 | R42: 0 | Y42: EU2015/45 | Z42: třetí údaj
K43: =IF(($AD$8+List1!A17)<=$AD$9,$AD$8+List1!A17,"") ->  | P43: 0 | Q43: 1 | R43: 0 | Y43: jiná norma | Z43: arit.průměr
B47: Se způsobem provedení vyučtování souhlasí:
J50: Podpis přímého nadřízeného nebo řešitele grantu, projektu…
B52: Datum a podpis správce rozpočtu (tajemníka)
B56: Podpis vedoucího ekonom. odd. | J56: Podpis zaměstnance, který kontroloval a upravil vyúčtování (pokladní)

Sheet Vyúčtování
I1: Příloha OD č. 2/2020 | AH1: =60*60*24 -> 86400
B2: VYÚČTOVÁNÍ ZAHRANIČNÍ PRACOVNÍ CESTY | AA2: ="Kurzy ČNB jsou aktualizovány k "&TEXT(MAX('Kurzy CNB'!A2:A460),"dd.mm.rrrr") -> Kurzy ČNB jsou aktualizovány k 17.05.2021
B3: Jméno a příjmení
B4: Název akce | M4: stát | AJ4: Vozidlo
B5: Místo akce | M5: Německo | AJ5: SPZ
E6: datum | F6: čas | G6: místo | M6: základní sazba zahraničního stravného | AJ6: Palivo | AK6: benzin 95 oktanů | AO6: =AO8 -> 0
B7: Zahájení cesty | E7: 2021-01-05 | F7: 08:00:00 | R7: =E7+F7 -> 2021-01-05T08:00:00 | AJ7: spotřeba 1 | AK7: 10 | AL7: Doplňte kombinovanou spotřebu dle norem EU z TP a ostatní pole ponechte prázdné
B8: Překročení státní hranice/odlet | E8: 2021-01-05 | F8: 08:00:00 | G8: =IF(R8<R7,"překročení hranice nemůže být před začátkem cesty","") ->  | M8: =VLOOKUP(M5,List1!V3:Y180,4,FALSE) -> 45 | N8: =VLOOKUP(M5,List1!V3:Y180,2,FALSE) -> EUR | R8: =E8+F8 -> 2021-01-05T08:00:00 | AJ8: spotřeba 2 | AL8: Pokud údaj o kombinované spotřebě v technickém průkazu není, vypočte se spotřeba PHM vozidla aritmetickým průměrem ze všech údajů o spotřebě uvedených v technickém průkazu.
B9: Překročení státní hranice/přílet | E9: 2021-01-10 | F9: 08:00:00 | G9: =IF(OR(E7>MAX('Kurzy CNB'!A2:A460),E16>MAX('Kurzy CNB'!A2:A460)),"Začátek cesty nebo datum zálohy je v období mimo načtené kurzy ČNB","") ->  | M9: použit kurz ze dne | R9: =E9+F9 -> 2021-01-10T08:00:00 | AJ9: spotřeba 3
B10: Ukončení cesty | E10: 2021-01-10 | F10: 08:00:00 | M10: =IF(AND(E16<>"",E14<>"NE",OR(F16<>"",F17<>"")),E16,E7) -> 2021-01-05 | R10: =E10+F10 -> 2021-01-10T08:00:00 | AJ10: spotřeba 4
B11: Strava poskytnuta bezplatně | E11: ano | G11: Celková vzdálenost v km při použití VV | AJ11: Průměr - použitá spotřeba | AK11: =ROUND(AVERAGE(AK7:AK10),2) -> 10 | AO11: 0 - 5 hod | AP11: 5 až 12 hod. | AQ11: 12 až 18 hod. | AR11: více než 18 hod.
B12: Použitý dopr. prostředek | E12: V | H12: =IF(E12="VV",CEILING(G12*$AK$16+G12*$AK$21,0.01),"") ->  | AJ12: Cena paliva z dokladu | AL12: EUR | AN12: počet jídel | AO12: 0 | AP12: I | AQ12: II | AR12: III
AJ13: Cena paliva z dokladu CZK | AK13: =CEILING(IF(AK12<>"",IF(AL12<>"",(IF(AL12="CZK",1,VLOOKUP($M$10,'Kurzy CNB'!$A$1:$AH$156,VLOOKUP(AL12,List1!$S$4:$T$36,2,FALSE),TRUE)))*AK12/VLOOKUP(AL12,List1!$S$3:$U$36,3,FALSE),0),0),0.0001) -> 0 | AN13: 0 | AO13: 0 | AP13: 100 | AQ13: 150 | AR13: 220
B14: Poskytnuta záloha | E14: ne | G14: částka | H14: měna | I14: kurz ČNB | AJ14: Náhrady | AN14: 1 | AO14: 0 | AP14: =AP13*0.3 -> 30 | AQ14: =0.65*AQ13 -> 97.5 | AR14: =0.75*AR13 -> 165
B16: Záloha 1 | D16: vydaná dne | E16: 2020-01-10 | H16: EUR | I16: =IF(OR(E16="",H16="CZK"),1,VLOOKUP(E16,'Kurzy CNB'!$A$1:$AH$156,VLOOKUP(H16,List1!$S$4:$T$36,2,FALSE),TRUE)) ->  | J16: =CEILING(I16*F16,0.001) ->  | AJ16: amortizace za km | AK16: 4.4 | AN16: 2 | AO16: 0 | AP16: 0 | AQ16: =0.3*AQ13 -> 45 | AR16: =0.5*AR13 -> 110
B17: Záloha 2 | D17: vydaná dne | E17: =E16 -> 2020-01-10 | H17: CZK | I17: =IF(OR(E17="",H17="CZK",H17=""),1,VLOOKUP(E17,'Kurzy CNB'!$A$1:$AH$156,VLOOKUP(H17,List1!$S$4:$T$36,2,FALSE),TRUE)) -> 1 | J17: =CEILING(I17*F17,0.001) -> 0 | AJ17: benzin 95 oktanů | AK17: 27.8 | AN17: 3 | AO17: 0 | AP17: 0 | AQ17: 0 | AR17: =0.25*AR13 -> 55
AJ18: benzin 98 oktanů | AK18: 31.5
B19: VYÚČTOVÁNÍ | AJ19: nafta | AK19: 27.2
D20: Popis | F20: měna | G20: částka | H20: měna | I20: částka | K20: Stravné | AJ20: elektřina | AK20: 5
B21: Jízdní výdaje | D21: Vlastní vozidlo - VV | F21: CZK | G21: =H12 ->  | H21: CZK | I21: =G21 ->  | K21: měna | L21: částka | M21: měna | N21: částka | AJ21: náhrada za km paliva | AK21: =ROUND(IF(AK13=0,(VLOOKUP(AK6,AJ17:AK20,2,FALSE)),AK13)*AK11/100,4) -> 2.78 | AL21: =IF(AK13<>"","použita cena z dokladu","použita cena z vyhlášky") -> použita cena z dokladu
F22: CZK | H22: CZK | I22: =IF(G22<>"",IF(F22<>"",(IF(F22="CZK",1,VLOOKUP($M$10,'Kurzy CNB'!$A$1:$AH$156,VLOOKUP(F22,List1!$S$4:$T$36,2,FALSE),TRUE)))*G22/VLOOKUP(F22,List1!$S$3:$U$36,3,FALSE),""),"") ->  | K22: CZK | L22: =CEILING(SUM(Z27:Z55),0.01) -> 0 | M22: CZK | N22: =L22 -> 0
F23: EUR | H23: CZK | I23: =IF(G23<>"",IF(F23<>"",(IF(F23="CZK",1,VLOOKUP($M$10,'Kurzy CNB'!$A$1:$AH$156,VLOOKUP(F23,List1!$S$4:$T$36,2,FALSE),TRUE)))*G23/VLOOKUP(F23,List1!$S$3:$U$36,3,FALSE),""),"") ->  | K23: =N8 -> EUR | L23: =CEILING(SUM(AA27:AA55),0.01) -> 225 | M23: CZK | N23: =IF(L23<>"",VLOOKUP($M$10,'Kurzy CNB'!$A$1:$AH$156,VLOOKUP(K23,List1!$S$4:$T$36,2,FALSE),TRUE))*L23/VLOOKUP(K23,List1!$S$3:$U$36,3,FALSE) -> 5900.625 | AO23: zahra
H24: CZK | I24: =IF(G24<>"",IF(F24<>"",(IF(F24="CZK",1,VLOOKUP($M$10,'Kurzy CNB'!$A$1:$AH$156,VLOOKUP(F24,List1!$S$4:$T$36,2,FALSE),TRUE)))*G24/VLOOKUP(F24,List1!$S$3:$U$36,3,FALSE),""),"") -> 
B25: Výdaje za ubytování | H25: CZK | I25: =IF(G25<>"",IF(F25<>"",(IF(F25="CZK",1,VLOOKUP($M$10,'Kurzy CNB'!$A$1:$AH$156,VLOOKUP(F25,List1!$S$4:$T$36,2,FALSE),TRUE)))*G25/VLOOKUP(F25,List1!$S$3:$U$36,3,FALSE),""),"") ->  | K25: Bezplatně poskytnutá strava | V25: počet jídel | Z25: CZK | AA25: =N8 -> EUR | AC25: Celkem | AO25: 0 - 1 hod | AP25: 1 až 12 hod. | AQ25: 12 až 18 hod. | AR25: více než 18 hod.
H26: CZK | I26: =IF(G26<>"",IF(F26<>"",(IF(F26="CZK",1,VLOOKUP($M$10,'Kurzy CNB'!$A$1:$AH$156,VLOOKUP(F26,List1!$S$4:$T$36,2,FALSE),TRUE)))*G26/VLOOKUP(F26,List1!$S$3:$U$36,3,FALSE),""),"") ->  | K26: Datum | L26: snídaně | M26: oběd | N26: večeře | O26: doba | P26: začátek zahr | Q26: konec zahr | R26: doba zahr | S26: doba CR | T26: přep zahr | U26: přep CR | W26: kod zahr | X26: kod tuz | Z26: stravne CR | AA26: stravne zahr | AN26: počet jídel | AO26: 0 | AP26: I | AQ26: II | AR26: III
B27: Ostatní výdaje | H27: CZK | I27: =IF(G27<>"",IF(F27<>"",(IF(F27="CZK",1,VLOOKUP($M$10,'Kurzy CNB'!$A$1:$AH$156,VLOOKUP(F27,List1!$S$4:$T$36,2,FALSE),TRUE)))*G27/VLOOKUP(F27,List1!$S$3:$U$36,3,FALSE),""),"") ->  | K27: =IF(E7<>0,E7,"") -> 2021-01-05 | O27: =IF(K27<>"",IF(K28<>"",K27+1-R7,R10-R7),"") -> 0.6666666667 | P27: =IF(OR($E$8>K27,$E$9<K27),"",IF(K27=$E$8,$R$8,K27)) -> 2021-01-05T08:00:00 | Q27: =IF(OR($E$8>K27,$E$9<K27),"",IF(K27=$E$9,$R$9,K27+1)) -> 2021-01-06 | R27: =IF(P27="","",Q27-P27) -> 0.6666666667 | S27: =IF(O27<>"",IF(R27<>"",O27-R27,O27),"") -> 0 | T27: =IF(S27<5/24,R27,IF(R27<=(5/24+0.0000001),"",R27)) -> 0.6666666667 | U27: =IF(S27>=5/24,IF(R27<=(5/24+0.0000001),S27+R27,S27),S27) -> 0 | V27: =IF($E$11="ne",0,IF(LEFT(L27,1)="A",1,0)+IF(LEFT(M27,1)="A",1,0)+IF(LEFT(N27,1)="A",1,0)) -> 0 | W27: =IF(T27<>"",(IF(T27<(1/24-0.0000001),1,(IF(T27<=12/24,2,IF(T27<=18/24,3,4))))),"") -> 3 | X27: =IF(U27<>"",(IF(U27<5/24,1,(IF(U27<=12/24,2,IF(U27<=18/24,3,4))))),"") -> 1 | Z27: =IF(X27<>"",IF(W27="",VLOOKUP(V27,$AN$12:$AR$17,X27+1,FALSE),VLOOKUP(0,$AN$12:$AR$17,X27+1)),"") -> 0 | AA27: =IF(W27="","",IF(X27=1,VLOOKUP(V27,$AN$26:$AR$30,W27+1,FALSE),VLOOKUP(V27,$AN$26:$AR$30,3,FALSE))) -> 30 | AN27: 0 | AO27: 0 | AP27: =AR27/3 -> 15 | AQ27: =AR27*2/3 -> 30 | AR27: =M8 -> 45
H28: CZK | I28: =IF(G28<>"",IF(F28<>"",(IF(F28="CZK",1,VLOOKUP($M$10,'Kurzy CNB'!$A$1:$AH$156,VLOOKUP(F28,List1!$S$4:$T$36,2,FALSE),TRUE)))*G28/VLOOKUP(F28,List1!$S$3:$U$36,3,FALSE),""),"") ->  | K28: =IF(($E$7+List1!A2)<=$E$10,$E$7+List1!A2,"") -> 2021-01-06 | O28: =IF(K28<>"",IF(K29<>"",1,$R$10-K28),"") -> 1 | P28: =IF(OR($E$8>K28,$E$9<K28),"",IF(K28=$E$8,$R$8,K28)) -> 2021-01-06 | Q28: =IF(OR($E$8>K28,$E$9<K28),"",IF(K28=$E$9,$R$9,K28+1)) -> 2021-01-07 | R28: =IF(P28="","",Q28-P28) -> 1 | S28: 0 | T28: =IF(S28<5/24,R28,IF(R28<=(5/24+0.0000001),"",R28)) -> 1 | U28: =IF(S28>=5/24,IF(R28<=(5/24+0.0000001),S28+R28,S28),S28) -> 0 | V28: 0 | W28: =IF(T28<>"",(IF(T28<(1/24-0.0000001),1,(IF(T28<=12/24,2,IF(T28<=18/24,3,4))))),"") -> 4 | X28: =IF(U28<>"",(IF(U28<5/24,1,(IF(U28<=12/24,2,IF(U28<=18/24,3,4))))),"") -> 1 | Z28: 0 | AA28: =IF(W28="","",IF(X28=1,VLOOKUP(V28,$AN$26:$AR$30,W28+1,FALSE),VLOOKUP(V28,$AN$26:$AR$30,3,FALSE))) -> 45 | AN28: 1 | AO28: 0 | AP28: =AP27*0.3 -> 4.5 | AQ28: =0.65*AQ27 -> 19.5 | AR28: =0.75*AR27 -> 33.75
B29: Celkem (včetně stravného) | H29: CZK | I29: =SUM(I21:I28,N22:N23) -> 5900.625 | K29: =IF(($E$7+List1!A3)<=$E$10,$E$7+List1!A3,"") -> 2021-01-07 | O29: 1 | P29: 2021-01-07 | Q29: =IF(OR($E$8>K29,$E$9<K29),"",IF(K29=$E$9,$R$9,K29+1)) -> 2021-01-08 | R29: 1 | S29: 0 | T29: =IF(S29<5/24,R29,IF(R29<=(5/24+0.0000001),"",R29)) -> 1 | U29: 0 | V29: 0 | W29: 4 | X29: 1 | Z29: 0 | AA29: 45 | AJ29: Přehled EU norem používaných v TP | AN29: 2 | AO29: 0 | AP29: 0 | AQ29: =0.3*AQ27 -> 9 | AR29: =0.5*AR27 -> 22.5
B30: Záloha | H30: CZK | I30: =IF(E14="ne",0,CEILING(J16+J17,0.01)) -> 0 | K30: =IF(($E$7+List1!A4)<=$E$10,$E$7+List1!A4,"") -> 2021-01-08 | O30: 1 | P30: 2021-01-08 | Q30: 2021-01-09 | R30: 1 | S30: 0 | T30: 1 | U30: 0 | V30: 0 | W30: 4 | X30: 1 | Z30: 0 | AA30: 45 | AJ30: 80/1268/EHS | AK30: arit.průměr | AL30: 3 údaje v TP | AN30: 3 | AO30: 0 | AP30: 0 | AQ30: 0 | AR30: =0.25*AR27 -> 11.25
B31: =IF(I31<0,"Přeplatek (zaměstnanec vrátí)", "Doplatek (zaměstnanci bude doplaceno)") -> Doplatek (zaměstnanci bude doplaceno) | H31: CZK | I31: =(I29-I30)/(IF(H31="CZK",1,VLOOKUP($M$10,'Kurzy CNB'!$A$1:$AH$156,VLOOKUP(H31,List1!$S$4:$T$36,2,FALSE),TRUE))/VLOOKUP(H31,List1!$S$3:$U$36,3,FALSE)) -> 5900.625 | K31: =IF(($E$7+List1!A5)<=$E$10,$E$7+List1!A5,"") -> 2021-01-09 | O31: 1 | P31: 2021-01-09 | Q31: 2021-01-10 | R31: 1 | S31: 0 | T31: 1 | U31: 0 | V31: 0 | W31: 4 | X31: 1 | Z31: 0 | AA31: 45 | AJ31: 93/116/ES | AK31: třetí údaj
K32: =IF(($E$7+List1!A6)<=$E$10,$E$7+List1!A6,"") -> 2021-01-10 | O32: 0.3333333333 | P32: 2021-01-10 | Q32: 2021-01-10T08:00:00 | R32: 0.3333333333 | S32: 0 | T32: 0.3333333333 | U32: 0 | V32: 0 | W32: 2 | X32: 1 | Z32: 0 | AA32: 15 | AJ32: 1999/100/ES | AK32: třetí údaj
B33: Zdroj financování (PF UK, grant nebo projekt): | K33: =IF(($E$7+List1!A7)<=$E$10,$E$7+List1!A7,"") ->  | V33: 0 | AJ33: 2004/3/ES | AK33: třetí údaj
K34: =IF(($E$7+List1!A8)<=$E$10,$E$7+List1!A8,"") ->  | V34: 0 | AJ34: EU 692/2008 | AK34: třetí údaj
K35: =IF(($E$7+List1!A9)<=$E$10,$E$7+List1!A9,"") ->  | V35: 0 | AJ35: EU 692/2008A,…F | AK35: třetí údaj
K36: =IF(($E$7+List1!A10)<=$E$10,$E$7+List1!A10,"") ->  | V36: 0 | AJ36: EU/566/2011 | AK36: třetí údaj
K37: =IF(($E$7+List1!A11)<=$E$10,$E$7+List1!A11,"") ->  | V37: 0 | AJ37: 2007/46/ES | AK37: třetí údaj
B38: Číslo bankovního účtu pro zasílání náhrad zaměstnanci: | K38: =IF(($E$7+List1!A12)<=$E$10,$E$7+List1!A12,"") ->  | V38: 0 | AJ38: EHK 101,R101.00 | AK38: třetí údaj
K39: =IF(($E$7+List1!A13)<=$E$10,$E$7+List1!A13,"") ->  | V39: 0 | AJ39: 459/2012/EU | AK39: třetí údaj
K40: =IF(($E$7+List1!A14)<=$E$10,$E$7+List1!A14,"") ->  | V40: 0 | AJ40: 630/2012/EU | AK40: třetí údaj
K41: =IF(($E$7+List1!A15)<=$E$10,$E$7+List1!A15,"") ->  | V41: 0 | AJ41: EU195/2013 | AK41: třetí údaj
B42: Prohlašuji, že jsem všechny údaje uvedl úplně, a že je zpráva ze zahraniční pracovní cesty přiložena. | K42: =IF(($E$7+List1!A16)<=$E$10,$E$7+List1!A16,"") ->  | V42: 0 | AJ42: 715/2007/ES | AK42: třetí údaj
K43: =IF(($E$7+List1!A17)<=$E$10,$E$7+List1!A17,"") ->  | V43: 0 | AJ43: EU136/2014 | AK43: třetí údaj
K44: =IF(($E$7+List1!A18)<=$E$10,$E$7+List1!A18,"") ->  | T44: =IF(S44<5/24,R44,IF(R44<=(5/24+0.0000001),"",R44)) ->  | V44: 0 | AJ44: EU2016/646 | AK44: třetí údaj
K45: =IF(($E$7+List1!A19)<=$E$10,$E$7+List1!A19,"") ->  | T45: =IF(S45<5/24,R45,IF(R45<=(5/24+0.0000001),"",R45)) ->  | V45: 0 | AJ45: EU2017/1347 | AK45: třetí údaj
K46: =IF(($E$7+List1!A20)<=$E$10,$E$7+List1!A20,"") ->  | T46: =IF(S46<5/24,R46,IF(R46<=(5/24+0.0000001),"",R46)) ->  | V46: 0 | AJ46: EU2015/45 | AK46: třetí údaj
B47: Datum a podpis zaměstnance | K47: =IF(($E$7+List1!A21)<=$E$10,$E$7+List1!A21,"") ->  | V47: 0 | AJ47: jiná norma | AK47: arit.průměr
K48: =IF(($E$7+List1!A22)<=$E$10,$E$7+List1!A22,"") ->  | V48: 0
K49: =IF(($E$7+List1!A23)<=$E$10,$E$7+List1!A23,"") ->  | V49: 0
K50: =IF(($E$7+List1!A24)<=$E$10,$E$7+List1!A24,"") ->  | V50: 0
B51: Podpis řešitele grantu nebo projektu | F51: Podpis vedoucího zahraničního oddělení | K51: =IF(($E$7+List1!A25)<=$E$10,$E$7+List1!A25,"") ->  | V51: 0
K52: =IF(($E$7+List1!A26)<=$E$10,$E$7+List1!A26,"") ->  | V52: 0
K53: =IF(($E$7+List1!A27)<=$E$10,$E$7+List1!A27,"") ->  | V53: 0
K54: =IF(($E$7+List1!A28)<=$E$10,$E$7+List1!A28,"") ->  | V54: 0
K55: =IF(($E$7+List1!A29)<=$E$10,$E$7+List1!A29,"") ->  | V55: 0
B56: Podpis přímého nadřízeného | F56: Podpis vedoucího ekonomického oddělení
B60: Podpis správce rozpočtu (tajemníka) | F60: Podpis pracovníka ekonomického oddělení, který kontroloval a upravil vyúčtování

Sheet Kurzy CNB
A1: Datum | B1: 1 AUD | C1: 1 BGN | D1: 1 BRL | E1: 1 CAD | F1: 1 CHF | G1: 1 CNY | H1: 1 DKK | I1: 1 EUR | J1: 1 GBP | K1: 1 HKD | L1: 1 HRK | M1: 100 HUF | N1: 1000 IDR | O1: 1 ILS | P1: 100 INR | Q1: 100 ISK | R1: 100 JPY | S1: 100 KRW | T1: 1 MXN | U1: 1 MYR | V1: 1 NOK | W1: 1 NZD | X1: 100 PHP | Y1: 1 PLN | Z1: 1 RON | AA1: 100 RUB | AB1: 1 SEK | AC1: 1 SGD | AD1: 100 THB | AE1: 1 TRY | AF1: 1 USD | AG1: 1 XDR | AH1: 1 ZAR
A2: 2021-01-04 | B2: 16.411 | C2: 13.365 | D2: 4.134 | E2: 16.735 | F2: 24.181 | G2: 3.289 | H2: 3.514 | I2: 26.14 | J2: 28.99 | K2: 2.742 | L2: 3.46 | M2: 7.236 | N2: 1.53 | O2: 6.63 | P2: 29.112 | Q2: 16.724 | R2: 20.646 | S2: 1.962 | T2: 1.076 | U2: 5.306 | V2: 2.503 | W2: 15.319 | X2: 44.262 | Y2: 5.748 | Z2: 5.367 | AA2: 28.927 | AB2: 2.591 | AC2: 16.138 | AD2: 71.162 | AE2: 2.886 | AF2: 21.259 | AG2: 30.619 | AH2: 1.459
A3: 2021-01-05 | B3: 16.463 | C3: 13.408 | D3: 4.002 | E3: 16.759 | F3: 24.273 | G3: 3.306 | H3: 3.525 | I3: 26.225 | J3: 29.03 | K3: 2.756 | L3: 3.469 | M3: 7.279 | N3: 1.536 | O3: 6.677 | P3: 29.181 | Q3: 16.8 | R3: 20.77 | S3: 1.963 | T3: 1.066 | U3: 5.32 | V3: 2.505 | W3: 15.392 | X3: 44.429 | Y3: 5.767 | Z3: 5.382 | AA3: 28.611 | AB3: 2.608 | AC3: 16.206 | AD3: 71.292 | AE3: 2.891 | AF3: 21.369 | AG3: 30.959 | AH3: 1.424
A4: 2021-01-06 | B4: 16.517 | C4: 13.369 | D4: 4.015 | E4: 16.711 | F4: 24.164 | G4: 3.283 | H4: 3.514 | I4: 26.145 | J4: 28.849 | K4: 2.733 | L4: 3.459 | M4: 7.304 | N4: 1.525 | O4: 6.655 | P4: 28.984 | Q4: 16.727 | R4: 20.586 | S4: 1.952 | T4: 1.073 | U4: 5.284 | V4: 2.519 | W4: 15.451 | X4: 44.092 | Y4: 5.789 | Z4: 5.366 | AA4: 28.779 | AB4: 2.597 | AC4: 16.093 | AD4: 70.848 | AE4: 2.888 | AF4: 21.191 | AG4: 30.683 | AH4: 1.412
A5: 2021-01-07 | B5: 16.509 | C5: 13.367 | D5: 4.013 | E5: 16.758 | F5: 24.138 | G5: 3.294 | H5: 3.515 | I5: 26.145 | J5: 28.992 | K5: 2.747 | L5: 3.455 | M5: 7.308 | N5: 1.531 | O5: 6.696 | P5: 29.036 | Q5: 16.835 | R5: 20.566 | S5: 1.948 | T5: 1.078 | U5: 5.275 | V5: 2.528 | W5: 15.465 | X5: 44.285 | Y5: 5.805 | Z5: 5.367 | AA5: 28.67 | AB5: 2.599 | AC5: 16.088 | AD5: 70.939 | AE5: 2.906 | AF5: 21.299 | AG5: 30.899 | AH5: 1.391
A6: 2021-01-08 | B6: 16.607 | C6: 13.378 | D6: 3.981 | E6: 16.835 | F6: 24.167 | G6: 3.305 | H6: 3.518 | I6: 26.165 | J6: 29.039 | K6: 2.755 | L6: 3.456 | M6: 7.276 | N6: 1.523 | O6: 6.712 | P6: 29.136 | Q6: 16.826 | R6: 20.559 | S6: 1.956 | T6: 1.069 | U6: 5.297 | V6: 2.543 | W6: 15.505 | X6: 44.379 | Y6: 5.8 | Z6: 5.372 | AA6: 28.816 | AB6: 2.603 | AC6: 16.126 | AD6: 71.017 | AE6: 2.907 | AF6: 21.359 | AG6: 30.87 | AH6: 1.398
A7: 2021-01-11 | B7: 16.622 | C7: 13.417 | D7: 3.942 | E7: 16.872 | F7: 24.211 | G7: 3.33 | H7: 3.528 | I7: 26.24 | J7: 29.077 | K7: 2.782 | L7: 3.462 | M7: 7.274 | N7: 1.527 | O7: 6.784 | P7: 29.365 | Q7: 16.703 | R7: 20.7 | S7: 1.964 | T7: 1.07 | U7: 5.324 | V7: 2.53 | W7: 15.507 | X7: 44.866 | Y7: 5.794 | Z7: 5.388 | AA7: 28.895 | AB7: 2.604 | AC7: 16.218 | AD7: 71.588 | AE7: 2.898 | AF7: 21.574 | AG7: 31.178 | AH7: 1.395
A8: 2021-01-12 | B8: 16.636 | C8: 13.391 | D8: 3.933 | E8: 16.89 | F8: 24.223 | G8: 3.333 | H8: 3.521 | I8: 26.19 | J8: 29.285 | K8: 2.777 | L8: 3.454 | M8: 7.282 | N8: 1.524 | O8: 6.813 | P8: 29.397 | Q8: 16.767 | R8: 20.664 | S8: 1.96 | T8: 1.078 | U8: 5.307 | V8: 2.524 | W8: 15.46 | X8: 44.818 | Y8: 5.788 | Z8: 5.376 | AA8: 29.078 | AB8: 2.596 | AC8: 16.221 | AD8: 71.477 | AE8: 2.877 | AF8: 21.535 | AG8: 31.016 | AH8: 1.398
A9: 2021-01-13 | B9: 16.636 | C9: 13.384 | D9: 4.035 | E9: 16.898 | F9: 24.208 | G9: 3.326 | H9: 3.518 | I9: 26.175 | J9: 29.414 | K9: 2.775 | L9: 3.453 | M9: 7.266 | N9: 1.53 | O9: 6.851 | P9: 29.407 | Q9: 16.779 | R9: 20.702 | S9: 1.96 | T9: 1.084 | U9: 5.32 | V9: 2.532 | W9: 15.439 | X9: 44.765 | Y9: 5.783 | Z9: 5.372 | AA9: 29.151 | AB9: 2.582 | AC9: 16.218 | AD9: 71.621 | AE9: 2.891 | AF9: 21.515 | AG9: 31.001 | AH9: 1.405
A10: 2021-01-14 | B10: 16.744 | C10: 13.39 | D10: 4.1 | E10: 17.032 | F10: 24.24 | G10: 3.341 | H10: 3.52 | I10: 26.19 | J10: 29.448 | K10: 2.786 | L10: 3.461 | M10: 7.283 | N10: 1.537 | O10: 6.875 | P10: 29.54 | Q10: 16.724 | R10: 20.754 | S10: 1.969 | T10: 1.089 | U10: 5.353 | V10: 2.54 | W10: 15.541 | X10: 44.979 | Y10: 5.772 | Z10: 5.374 | AA10: 29.398 | AB10: 2.592 | AC10: 16.278 | AD10: 71.952 | AE10: 2.927 | AF10: 21.604 | AG10: 31.156 | AH10: 1.422
A11: 2021-01-15 | B11: 16.683 | C11: 13.374 | D11: 4.106 | E11: 16.968 | F11: 24.289 | G11: 3.333 | H11: 3.516 | I11: 26.16 | J11: 29.392 | K11: 2.783 | L11: 3.463 | M11: 7.267 | N11: 1.539 | O11: 6.614 | P11: 29.511 | Q11: 16.726 | R11: 20.802 | S11: 1.962 | T11: 1.089 | U11: 5.345 | V11: 2.537 | W11: 15.482 | X11: 44.925 | Y11: 5.765 | Z11: 5.368 | AA11: 29.38 | AB11: 2.582 | AC11: 16.242 | AD11: 71.84 | AE11: 2.899 | AF11: 21.577 | AG11: 31.108 | AH11: 1.417
A12: 2021-01-18 | B12: 16.657 | C12: 13.387 | D12: 4.097 | E12: 16.988 | F12: 24.364 | G12: 3.342 | H12: 3.52 | I12: 26.185 | J12: 29.397 | K12: 2.8 | L12: 3.468 | M12: 7.265 | N12: 1.543 | O12: 6.711 | P12: 29.611 | Q12: 16.7 | R12: 20.918 | S12: 1.961 | T12: 1.092 | U12: 5.357 | V12: 2.521 | W12: 15.424 | X12: 45.156 | Y12: 5.77 | Z12: 5.372 | AA12: 29.224 | AB12: 2.579 | AC12: 16.287 | AD12: 72.012 | AE12: 2.892 | AF12: 21.706 | AG12: 31.265 | AH12: 1.416
A13: 2021-01-19 | B13: 16.638 | C13: 13.375 | D13: 4.096 | E13: 16.939 | F13: 24.29 | G13: 3.329 | H13: 3.516 | I13: 26.16 | J13: 29.36 | K13: 2.781 | L13: 3.458 | M13: 7.297 | N13: 1.533 | O13: 6.644 | P13: 29.474 | Q13: 16.662 | R13: 20.736 | S13: 1.956 | T13: 1.1 | U13: 5.324 | V13: 2.53 | W13: 15.371 | X13: 44.908 | Y13: 5.768 | Z13: 5.367 | AA13: 29.249 | AB13: 2.591 | AC13: 16.233 | AD13: 71.813 | AE13: 2.897 | AF13: 21.562 | AG13: 31.058 | AH13: 1.444
A14: 2021-01-20 | B14: 16.678 | C14: 13.359 | D14: 4.058 | E14: 16.993 | F14: 24.234 | G14: 3.338 | H14: 3.512 | I14: 26.125 | J14: 29.508 | K14: 2.786 | L14: 3.454 | M14: 7.31 | N14: 1.539 | O14: 6.636 | P14: 29.571 | Q14: 16.619 | R14: 20.799 | S14: 1.959 | T14: 1.099 | U14: 5.339 | V14: 2.531 | W14: 15.399 | X14: 44.959 | Y14: 5.764 | Z14: 5.36 | AA14: 29.322 | AB14: 2.577 | AC14: 16.276 | AD14: 72.006 | AE14: 2.9 | AF14: 21.594 | AG14: 31.094 | AH14: 1.443
A15: 2021-01-21 | B15: 16.689 | C15: 13.343 | D15: 4.07 | E15: 17.002 | F15: 24.225 | G15: 3.322 | H15: 3.508 | I15: 26.095 | J15: 29.447 | K15: 2.769 | L15: 3.45 | M15: 7.301 | N15: 1.533 | O15: 6.56 | P15: 29.408 | Q15: 16.642 | R15: 20.756 | S15: 1.951 | T15: 1.094 | U15: 5.325 | V15: 2.545 | W15: 15.482 | X15: 44.673 | Y15: 5.762 | Z15: 5.354 | AA15: 29.11 | AB15: 2.588 | AC15: 16.228 | AD15: 71.703 | AE15: 2.914 | AF15: 21.461 | AG15: 30.911 | AH15: 1.451
A16: 2021-01-22 | B16: 16.584 | C16: 13.37 | D16: 3.977 | E16: 16.923 | F16: 24.273 | G16: 3.319 | H16: 3.515 | I16: 26.15 | J16: 29.367 | K16: 2.775 | L16: 3.457 | M16: 7.313 | N16: 1.533 | O16: 6.555 | P16: 29.458 | Q16: 16.656 | R16: 20.723 | S16: 1.945 | T16: 1.079 | U16: 5.32 | V16: 2.531 | W16: 15.433 | X16: 44.746 | Y16: 5.76 | Z16: 5.365 | AA16: 28.705 | AB16: 2.594 | AC16: 16.193 | AD16: 71.676 | AE16: 2.899 | AF16: 21.509 | AG16: 31.028 | AH16: 1.423
A17: 2021-01-25 | B17: 16.584 | C17: 13.337 | D17: 3.926 | E17: 16.87 | F17: 24.213 | G17: 3.316 | H17: 3.505 | I17: 26.08 | J17: 29.374 | K17: 2.769 | L17: 3.447 | M17: 7.299 | N17: 1.531 | O17: 6.568 | P17: 29.43 | Q17: 16.611 | R17: 20.691 | S17: 1.946 | T17: 1.074 | U17: 5.307 | V17: 2.521 | W17: 15.475 | X17: 44.641 | Y17: 5.744 | Z17: 5.35 | AA17: 28.454 | AB17: 2.592 | AC17: 16.179 | AD17: 71.592 | AE17: 2.902 | AF17: 21.463 | AG17: 30.96 | AH17: 1.411
A18: 2021-01-26 | B18: 16.599 | C18: 13.334 | D18: 3.965 | E18: 16.889 | F18: 24.172 | G18: 3.321 | H18: 3.506 | I18: 26.08 | J18: 29.405 | K18: 2.771 | L18: 3.448 | M18: 7.272 | N18: 1.527 | O18: 6.57 | P18: 29.453 | Q18: 16.611 | R18: 20.71 | S18: 1.947 | T18: 1.072 | U18: 5.305 | V18: 2.51 | W18: 15.529 | X18: 44.678 | Y18: 5.736 | Z18: 5.349 | AA18: 28.575 | AB18: 2.589 | AC18: 16.199 | AD18: 71.652 | AE18: 2.922 | AF18: 21.479 | AG18: 30.968 | AH18: 1.417
A19: 2021-01-27 | B19: 16.528 | C19: 13.308 | D19: 4.004 | E19: 16.841 | F19: 24.193 | G19: 3.32 | H19: 3.499 | I19: 26.025 | J19: 29.442 | K19: 2.771 | L19: 3.443 | M19: 7.211 | N19: 1.529 | O19: 6.58 | P19: 29.429 | Q19: 16.576 | R19: 20.677 | S19: 1.941 | T19: 1.064 | U19: 5.311 | V19: 2.489 | W19: 15.449 | X19: 44.665 | Y19: 5.717 | Z19: 5.338 | AA19: 28.373 | AB19: 2.573 | AC19: 16.177 | AD19: 71.605 | AE19: 2.907 | AF19: 21.484 | AG19: 30.962 | AH19: 1.411
A20: 2021-01-28 | B20: 16.41 | C20: 13.352 | D20: 3.965 | E20: 16.784 | F20: 24.22 | G20: 3.341 | H20: 3.512 | I20: 26.115 | J20: 29.474 | K20: 2.786 | L20: 3.451 | M20: 7.247 | N20: 1.535 | O20: 6.558 | P20: 29.568 | Q20: 16.74 | R20: 20.692 | S20: 1.934 | T20: 1.056 | U20: 5.339 | V20: 2.482 | W20: 15.355 | X20: 44.93 | Y20: 5.743 | Z20: 5.356 | AA20: 28.268 | AB20: 2.577 | AC20: 16.204 | AD20: 71.915 | AE20: 2.924 | AF20: 21.6 | AG20: 31.114 | AH20: 1.417
A21: 2021-01-29 | B21: 16.449 | C21: 13.305 | D21: 3.908 | E21: 16.767 | F21: 24.095 | G21: 3.335 | H21: 3.499 | I21: 26.02 | J21: 29.44 | K21: 2.766 | L21: 3.438 | M21: 7.26 | N21: 1.528 | O21: 6.536 | P21: 29.427 | Q21: 16.669 | R21: 20.481 | S21: 1.921 | T21: 1.06 | U21: 5.304 | V21: 2.515 | W21: 15.431 | X21: 44.61 | Y21: 5.743 | Z21: 5.337 | AA21: 28.341 | AB21: 2.572 | AC21: 16.141 | AD21: 71.703 | AE21: 2.931 | AF21: 21.442 | AG21: 30.848 | AH21: 1.422
A22: 2021-02-01 | B22: 16.406 | C22: 13.279 | D22: 3.948 | E22: 16.783 | F22: 24.008 | G22: 3.324 | H22: 3.492 | I22: 25.97 | J22: 29.442 | K22: 2.772 | L22: 3.428 | M22: 7.288 | N22: 1.533 | O22: 6.535 | P22: 29.395 | Q22: 16.615 | R22: 20.486 | S22: 1.922 | T22: 1.059 | U22: 5.316 | V22: 2.5 | W22: 15.417 | X22: 44.708 | Y22: 5.761 | Z22: 5.329 | AA22: 28.347 | AB22: 2.555 | AC22: 16.138 | AD22: 71.682 | AE22: 2.989 | AF22: 21.489 | AG22: 30.962 | AH22: 1.43
A23: 2021-02-02 | B23: 16.345 | C23: 13.243 | D23: 3.989 | E23: 16.793 | F23: 23.962 | G23: 3.332 | H23: 3.482 | I23: 25.9 | J23: 29.401 | K23: 2.774 | L23: 3.416 | M23: 7.283 | N23: 1.533 | O23: 6.519 | P23: 29.465 | Q23: 16.592 | R23: 20.481 | S23: 1.927 | T23: 1.063 | U23: 5.317 | V23: 2.503 | W23: 15.422 | X23: 44.887 | Y23: 5.762 | Z23: 5.314 | AA23: 28.48 | AB23: 2.549 | AC23: 16.146 | AD23: 71.709 | AE23: 2.991 | AF23: 21.506 | AG23: 30.932 | AH23: 1.438
A24: 2021-02-03 | B24: 16.431 | C24: 13.254 | D24: 4.036 | E24: 16.866 | F24: 24.001 | G24: 3.341 | H24: 3.485 | I24: 25.925 | J24: 29.41 | K24: 2.784 | L24: 3.424 | M24: 7.291 | N24: 1.541 | O24: 6.532 | P24: 29.598 | Q24: 16.608 | R24: 20.541 | S24: 1.934 | T24: 1.071 | U24: 5.327 | V24: 2.504 | W24: 15.533 | X24: 44.925 | Y24: 5.772 | Z24: 5.32 | AA24: 28.436 | AB24: 2.559 | AC24: 16.186 | AD24: 71.82 | AE24: 3.01 | AF24: 21.579 | AG24: 30.985 | AH24: 1.445
A25: 2021-02-04 | B25: 16.465 | C25: 13.24 | D25: 4.028 | E25: 16.86 | F25: 23.935 | G25: 3.34 | H25: 3.482 | I25: 25.895 | J25: 29.532 | K25: 2.784 | L25: 3.42 | M25: 7.282 | N25: 1.54 | O25: 6.548 | P25: 29.618 | Q25: 16.589 | R25: 20.513 | S25: 1.931 | T25: 1.066 | U25: 5.319 | V25: 2.505 | W25: 15.536 | X25: 44.905 | Y25: 5.762 | Z25: 5.311 | AA25: 28.572 | AB25: 2.555 | AC25: 16.16 | AD25: 71.826 | AE25: 3.029 | AF25: 21.587 | AG25: 30.977 | AH25: 1.437
A26: 2021-02-05 | B26: 16.372 | C26: 13.194 | D26: 3.956 | E26: 16.817 | F26: 23.836 | G26: 3.328 | H26: 3.47 | I26: 25.805 | J26: 29.48 | K26: 2.778 | L26: 3.413 | M26: 7.237 | N26: 1.535 | O26: 6.54 | P26: 29.534 | Q26: 16.659 | R26: 20.362 | S26: 1.918 | T26: 1.06 | U26: 5.29 | V26: 2.504 | W26: 15.384 | X26: 44.767 | Y26: 5.732 | Z26: 5.294 | AA26: 28.788 | AB26: 2.55 | AC26: 16.096 | AD26: 71.531 | AE26: 3.045 | AF26: 21.534 | AG26: 30.863 | AH26: 1.438
A27: 2021-02-08 | B27: 16.4 | C27: 13.156 | D27: 3.963 | E27: 16.751 | F27: 23.736 | G27: 3.318 | H27: 3.46 | I27: 25.735 | J27: 29.3 | K27: 2.761 | L27: 3.404 | M27: 7.183 | N27: 1.529 | O27: 6.518 | P27: 29.335 | Q27: 16.635 | R27: 20.27 | S27: 1.909 | T27: 1.059 | U27: 5.264 | V27: 2.505 | W27: 15.374 | X27: 44.491 | Y27: 5.741 | Z27: 5.279 | AA27: 28.785 | AB27: 2.544 | AC27: 16.017 | AD27: 71.288 | AE27: 3.017 | AF27: 21.401 | AG27: 30.673 | AH27: 1.432
A28: 2021-02-09 | B28: 16.413 | C28: 13.159 | D28: 3.928 | E28: 16.702 | F28: 23.799 | G28: 3.304 | H28: 3.461 | I28: 25.74 | J28: 29.308 | K28: 2.743 | L28: 3.401 | M28: 7.172 | N28: 1.519 | O28: 6.533 | P28: 29.158 | Q28: 16.703 | R28: 20.336 | S28: 1.91 | T28: 1.058 | U28: 5.253 | V28: 2.509 | W28: 15.373 | X28: 44.266 | Y28: 5.751 | Z28: 5.28 | AA28: 28.726 | AB28: 2.547 | AC28: 16.012 | AD28: 71.021 | AE28: 2.998 | AF28: 21.263 | AG28: 30.528 | AH28: 1.438
A29: 2021-02-10 | B29: 16.471 | C29: 13.208 | D29: 3.938 | E29: 16.781 | F29: 23.907 | G29: 3.304 | H29: 3.473 | I29: 25.83 | J29: 29.473 | K29: 2.748 | L29: 3.415 | M29: 7.225 | N29: 1.523 | O29: 6.549 | P29: 29.249 | Q29: 16.643 | R29: 20.334 | S29: 1.927 | T29: 1.06 | U29: 5.267 | V29: 2.525 | W29: 15.372 | X29: 44.333 | Y29: 5.763 | Z29: 5.297 | AA29: 28.863 | AB29: 2.563 | AC29: 16.063 | AD29: 71.23 | AE29: 3.021 | AF29: 21.301 | AG29: 30.697 | AH29: 1.449
A30: 2021-02-11 | B30: 16.477 | C30: 13.176 | D30: 3.971 | E30: 16.756 | F30: 23.856 | G30: 3.288 | H30: 3.465 | I30: 25.77 | J30: 29.368 | K30: 2.737 | L30: 3.405 | M30: 7.215 | N30: 1.519 | O30: 6.521 | P30: 29.155 | Q30: 16.54 | R30: 20.273 | S30: 1.924 | T30: 1.065 | U30: 5.249 | V30: 2.512 | W30: 15.367 | X30: 44.177 | Y30: 5.731 | Z30: 5.286 | AA30: 28.847 | AB30: 2.555 | AC30: 16.029 | AD30: 71.067 | AE30: 3.023 | AF30: 21.219 | AG30: 30.601 | AH30: 1.452
A31: 2021-02-12 | B31: 16.439 | C31: 13.168 | D31: 3.943 | E31: 16.704 | F31: 23.841 | G31: 3.296 | H31: 3.464 | I31: 25.755 | J31: 29.351 | K31: 2.744 | L31: 3.402 | M31: 7.177 | N31: 1.522 | O31: 6.54 | P31: 29.308 | Q31: 16.531 | R31: 20.255 | S31: 1.925 | T31: 1.062 | U31: 5.262 | V31: 2.504 | W31: 15.293 | X31: 44.267 | Y31: 5.723 | Z31: 5.284 | AA31: 28.678 | AB31: 2.555 | AC31: 16.03 | AD31: 71.126 | AE31: 3.03 | AF31: 21.271 | AG31: 30.681 | AH31: 1.452
A32: 2021-02-15 | B32: 16.456 | C32: 13.13 | D32: 3.942 | E32: 16.731 | F32: 23.772 | G32: 3.28 | H32: 3.453 | I32: 25.68 | J32: 29.442 | K32: 2.73 | L32: 3.391 | M32: 7.17 | N32: 1.521 | O32: 6.526 | P32: 29.153 | Q32: 16.504 | R32: 20.101 | S32: 1.92 | T32: 1.062 | U32: 5.247 | V32: 2.518 | W32: 15.294 | X32: 44.164 | Y32: 5.725 | Z32: 5.267 | AA32: 28.864 | AB32: 2.557 | AC32: 16.001 | AD32: 70.825 | AE32: 3.042 | AF32: 21.168 | AG32: 30.498 | AH32: 1.467
A33: 2021-02-16 | B33: 16.497 | C33: 13.17 | D33: 3.95 | E33: 16.761 | F33: 23.849 | G33: 3.286 | H33: 3.463 | I33: 25.755 | J33: 29.493 | K33: 2.736 | L33: 3.401 | M33: 7.184 | N33: 1.523 | O33: 6.553 | P33: 29.127 | Q33: 16.552 | R33: 20.096 | S33: 1.92 | T33: 1.056 | U33: 5.263 | V33: 2.527 | W33: 15.354 | X33: 43.944 | Y33: 5.73 | Z33: 5.282 | AA33: 28.822 | AB33: 2.565 | AC33: 16.012 | AD33: 70.883 | AE33: 3.041 | AF33: 21.209 | AG33: 30.557 | AH33: 1.459
A34: 2021-02-17 | B34: 16.624 | C34: 13.235 | D34: 3.998 | E34: 16.91 | F34: 23.953 | G34: 3.326 | H34: 3.481 | I34: 25.885 | J34: 29.768 | K34: 2.769 | L34: 3.419 | M34: 7.209 | N34: 1.531 | O34: 6.591 | P34: 29.484 | Q34: 16.614 | R34: 20.232 | S34: 1.939 | T34: 1.058 | U34: 5.314 | V34: 2.535 | W34: 15.423 | X34: 44.302 | Y34: 5.751 | Z34: 5.31 | AA34: 29.071 | AB34: 2.578 | AC34: 16.15 | AD34: 71.575 | AE34: 3.07 | AF34: 21.465 | AG34: 31 | AH34: 1.452
A35: 2021-02-18 | B35: 16.665 | C35: 13.222 | D35: 3.963 | E35: 16.897 | F35: 23.879 | G35: 3.308 | H35: 3.478 | I35: 25.86 | J35: 29.883 | K35: 2.76 | L35: 3.414 | M35: 7.209 | N35: 1.526 | O35: 6.563 | P35: 29.497 | Q35: 16.598 | R35: 20.255 | S35: 1.934 | T35: 1.06 | U35: 5.294 | V35: 2.531 | W35: 15.453 | X35: 44.118 | Y35: 5.761 | Z35: 5.305 | AA35: 29.065 | AB35: 2.578 | AC35: 16.133 | AD35: 71.334 | AE35: 3.08 | AF35: 21.4 | AG35: 30.779 | AH35: 1.473
A36: 2021-02-19 | B36: 16.733 | C36: 13.215 | D36: 3.937 | E36: 16.886 | F36: 23.818 | G36: 3.3 | H36: 3.475 | I36: 25.845 | J36: 29.877 | K36: 2.746 | L36: 3.41 | M36: 7.209 | N36: 1.514 | O36: 6.51 | P36: 29.363 | Q36: 16.61 | R36: 20.22 | S36: 1.93 | T36: 1.046 | U36: 5.269 | V36: 2.531 | W36: 15.532 | X36: 43.92 | Y36: 5.765 | Z36: 5.301 | AA36: 28.844 | AB36: 2.576 | AC36: 16.093 | AD36: 71.029 | AE36: 3.06 | AF36: 21.291 | AG36: 30.648 | AH36: 1.457
A37: 2021-02-22 | B37: 16.864 | C37: 13.272 | D37: 3.886 | E37: 16.939 | F37: 23.841 | G37: 3.31 | H37: 3.49 | I37: 25.955 | J37: 29.997 | K37: 2.759 | L37: 3.428 | M37: 7.228 | N37: 1.516 | O37: 6.54 | P37: 29.504 | Q37: 16.681 | R37: 20.279 | S37: 1.922 | T37: 1.029 | U37: 5.292 | V37: 2.515 | W37: 15.652 | X37: 43.912 | Y37: 5.77 | Z37: 5.323 | AA37: 28.532 | AB37: 2.587 | AC37: 16.163 | AD37: 71.265 | AE37: 3.029 | AF37: 21.394 | AG37: 30.87 | AH37: 1.436
A38: 2021-02-23 | B38: 16.845 | C38: 13.244 | D38: 3.921 | E38: 16.914 | F38: 23.665 | G38: 3.301 | H38: 3.484 | I38: 25.905 | J38: 30.015 | K38: 2.751 | L38: 3.419 | M38: 7.213 | N38: 1.514 | O38: 6.534 | P38: 29.42 | Q38: 16.691 | R38: 20.242 | S38: 1.917 | T38: 1.03 | U38: 5.276 | V38: 2.51 | W38: 15.621 | X38: 43.893 | Y38: 5.748 | Z38: 5.313 | AA38: 28.81 | AB38: 2.571 | AC38: 16.143 | AD38: 71.057 | AE38: 3.025 | AF38: 21.334 | AG38: 30.774 | AH38: 1.451
A39: 2021-02-24 | B39: 16.929 | C39: 13.281 | D39: 3.959 | E39: 17.015 | F39: 23.552 | G39: 3.315 | H39: 3.493 | I39: 25.975 | J39: 30.191 | K39: 2.758 | L39: 3.427 | M39: 7.221 | N39: 1.518 | O39: 6.545 | P39: 29.559 | Q39: 16.801 | R39: 20.185 | S39: 1.93 | T39: 1.049 | U39: 5.29 | V39: 2.535 | W39: 15.79 | X39: 43.974 | Y39: 5.75 | Z39: 5.328 | AA39: 29.027 | AB39: 2.574 | AC39: 16.185 | AD39: 71.241 | AE39: 2.983 | AF39: 21.387 | AG39: 30.881 | AH39: 1.478
A40: 2021-02-25 | B40: 17.041 | C40: 13.347 | D40: 3.919 | E40: 17.109 | F40: 23.564 | G40: 3.309 | H40: 3.511 | I40: 26.11 | J40: 30.21 | K40: 2.754 | L40: 3.44 | M40: 7.249 | N40: 1.516 | O40: 6.511 | P40: 29.398 | Q40: 17.032 | R40: 20.121 | S40: 1.921 | T40: 1.03 | U40: 5.286 | V40: 2.553 | W40: 15.907 | X40: 43.876 | Y40: 5.787 | Z40: 5.356 | AA40: 28.9 | AB40: 2.594 | AC40: 16.193 | AD40: 70.816 | AE40: 2.955 | AF40: 21.352 | AG40: 30.847 | AH40: 1.442
A41: 2021-02-26 | B41: 16.784 | C41: 13.391 | D41: 3.929 | E41: 17.087 | F41: 23.841 | G41: 3.345 | H41: 3.523 | I41: 26.195 | J41: 30.091 | K41: 2.787 | L41: 3.456 | M41: 7.248 | N41: 1.516 | O41: 6.537 | P41: 29.244 | Q41: 17.132 | R41: 20.331 | S41: 1.916 | T41: 1.036 | U41: 5.336 | V41: 2.518 | W41: 15.755 | X41: 44.332 | Y41: 5.797 | Z41: 5.373 | AA41: 28.889 | AB41: 2.583 | AC41: 16.265 | AD41: 71.184 | AE41: 2.905 | AF41: 21.612 | AG41: 31.265 | AH41: 1.447
A42: 2021-03-01 | B42: 16.75 | C42: 13.334 | D42: 3.876 | E42: 17.075 | F42: 23.678 | G42: 3.346 | H42: 3.507 | I42: 26.08 | J42: 30.132 | K42: 2.79 | L42: 3.442 | M42: 7.188 | N42: 1.518 | O42: 6.549 | P42: 29.416 | Q42: 16.946 | R42: 20.277 | S42: 1.928 | T42: 1.042 | U42: 5.335 | V42: 2.518 | W42: 15.685 | X42: 44.565 | Y42: 5.762 | Z42: 5.35 | AA42: 29.2 | AB42: 2.562 | AC42: 16.259 | AD42: 71.593 | AE42: 2.991 | AF42: 21.64 | AG42: 31.146 | AH42: 1.437
A43: 2021-03-02 | B43: 16.95 | C43: 13.364 | D43: 3.825 | E43: 17.168 | F43: 23.656 | G43: 3.359 | H43: 3.515 | I43: 26.14 | J43: 30.239 | K43: 2.802 | L43: 3.447 | M43: 7.187 | N43: 1.517 | O43: 6.585 | P43: 29.617 | Q43: 17.186 | R43: 20.329 | S43: 1.93 | T43: 1.051 | U43: 5.355 | V43: 2.548 | W43: 15.778 | X43: 44.808 | Y43: 5.769 | Z43: 5.361 | AA43: 29.475 | AB43: 2.578 | AC43: 16.32 | AD43: 71.803 | AE43: 2.966 | AF43: 21.733 | AG43: 31.223 | AH43: 1.442
A44: 2021-03-03 | B44: 16.915 | C44: 13.367 | D44: 3.797 | E44: 17.159 | F44: 23.63 | G44: 3.354 | H44: 3.515 | I44: 26.14 | J44: 30.264 | K44: 2.796 | L44: 3.448 | M44: 7.187 | N44: 1.522 | O44: 6.592 | P44: 29.774 | Q44: 17.141 | R44: 20.297 | S44: 1.939 | T44: 1.046 | U44: 5.354 | V44: 2.552 | W44: 15.767 | X44: 44.726 | Y44: 5.766 | Z44: 5.358 | AA44: 29.411 | AB44: 2.581 | AC44: 16.29 | AD44: 71.505 | AE44: 2.937 | AF44: 21.688 | AG44: 31.139 | AH44: 1.451
A45: 2021-03-04 | B45: 16.964 | C45: 13.397 | D45: 3.884 | E45: 17.226 | F45: 23.576 | G45: 3.366 | H45: 3.524 | I45: 26.205 | J45: 30.374 | K45: 2.807 | L45: 3.454 | M45: 7.188 | N45: 1.526 | O45: 6.58 | P45: 29.928 | Q45: 17.094 | R45: 20.277 | S45: 1.935 | T45: 1.045 | U45: 5.366 | V45: 2.555 | W45: 15.789 | X45: 44.869 | Y45: 5.756 | Z45: 5.369 | AA45: 29.567 | AB45: 2.58 | AC45: 16.352 | AD45: 71.769 | AE45: 2.926 | AF45: 21.774 | AG45: 31.294 | AH45: 1.449
A46: 2021-03-05 | B46: 16.901 | C46: 13.45 | D46: 3.872 | E46: 17.349 | F46: 23.775 | G46: 3.395 | H46: 3.537 | I46: 26.305 | J46: 30.477 | K46: 2.838 | L46: 3.473 | M46: 7.182 | N46: 1.541 | O46: 6.641 | P46: 30.156 | Q46: 17.204 | R46: 20.344 | S46: 1.953 | T46: 1.038 | U46: 5.408 | V46: 2.576 | W46: 15.719 | X46: 45.313 | Y46: 5.75 | Z46: 5.389 | AA46: 29.591 | AB46: 2.582 | AC46: 16.433 | AD46: 72.23 | AE46: 2.938 | AF46: 22.034 | AG46: 31.636 | AH46: 1.441
A47: 2021-03-08 | B47: 17.046 | C47: 13.507 | D47: 3.873 | E47: 17.575 | F47: 23.829 | G47: 3.412 | H47: 3.553 | I47: 26.42 | J47: 30.817 | K47: 2.866 | L47: 3.486 | M47: 7.196 | N47: 1.55 | O47: 6.669 | P47: 30.349 | Q47: 17.302 | R47: 20.496 | S47: 1.955 | T47: 1.033 | U47: 5.42 | V47: 2.596 | W47: 15.849 | X47: 45.705 | Y47: 5.743 | Z47: 5.408 | AA47: 29.769 | AB47: 2.595 | AC47: 16.516 | AD47: 72.357 | AE47: 2.901 | AF47: 22.264 | AG47: 31.813 | AH47: 1.439
A48: 2021-03-09 | B48: 17.01 | C48: 13.435 | D48: 3.769 | E48: 17.516 | F48: 23.732 | G48: 3.394 | H48: 3.535 | I48: 26.285 | J48: 30.667 | K48: 2.848 | L48: 3.462 | M48: 7.157 | N48: 1.535 | O48: 6.641 | P48: 30.266 | Q48: 17.327 | R48: 20.292 | S48: 1.942 | T48: 1.035 | U48: 5.369 | V48: 2.605 | W48: 15.815 | X48: 45.555 | Y48: 5.73 | Z48: 5.379 | AA48: 29.877 | AB48: 2.592 | AC48: 16.416 | AD48: 71.861 | AE48: 2.885 | AF48: 22.109 | AG48: 31.514 | AH48: 1.433
A49: 2021-03-10 | B49: 16.995 | C49: 13.407 | D49: 3.812 | E49: 17.44 | F49: 23.691 | G49: 3.387 | H49: 3.526 | I49: 26.225 | J49: 30.623 | K49: 2.841 | L49: 3.456 | M49: 7.136 | N49: 1.531 | O49: 6.634 | P49: 30.21 | Q49: 17.242 | R49: 20.311 | S49: 1.932 | T49: 1.04 | U49: 5.344 | V49: 2.602 | W49: 15.806 | X49: 45.384 | Y49: 5.732 | Z49: 5.367 | AA49: 29.81 | AB49: 2.589 | AC49: 16.37 | AD49: 71.666 | AE49: 2.905 | AF49: 22.051 | AG49: 31.478 | AH49: 1.443
A50: 2021-03-11 | B50: 17.018 | C50: 13.38 | D50: 3.907 | E50: 17.396 | F50: 23.658 | G50: 3.373 | H50: 3.519 | I50: 26.17 | J50: 30.559 | K50: 2.819 | L50: 3.45 | M50: 7.153 | N50: 1.518 | O50: 6.622 | P50: 30.132 | Q50: 17.071 | R50: 20.167 | S50: 1.935 | T50: 1.056 | U50: 5.325 | V50: 2.594 | W50: 15.825 | X50: 45.164 | Y50: 5.719 | Z50: 5.357 | AA50: 29.746 | AB50: 2.584 | AC50: 16.331 | AD50: 71.603 | AE50: 2.94 | AF50: 21.874 | AG50: 31.212 | AH50: 1.47
A51: 2021-03-12 | B51: 16.987 | C51: 13.37 | D51: 3.939 | E51: 17.459 | F51: 23.567 | G51: 3.368 | H51: 3.516 | I51: 26.15 | J51: 30.467 | K51: 2.822 | L51: 3.446 | M51: 7.142 | N51: 1.523 | O51: 6.597 | P51: 30.15 | Q51: 16.992 | R51: 20.093 | S51: 1.93 | T51: 1.053 | U51: 5.321 | V51: 2.593 | W51: 15.722 | X51: 45.26 | Y51: 5.701 | Z51: 5.353 | AA51: 29.818 | AB51: 2.579 | AC51: 16.29 | AD51: 71.185 | AE51: 2.891 | AF51: 21.912 | AG51: 31.37 | AH51: 1.466
A52: 2021-03-15 | B52: 16.986 | C52: 13.393 | D52: 3.915 | E52: 17.608 | F52: 23.634 | G52: 3.382 | H52: 3.523 | I52: 26.195 | J52: 30.572 | K52: 2.83 | L52: 3.456 | M52: 7.126 | N52: 1.525 | O52: 6.644 | P52: 30.283 | Q52: 17.065 | R52: 20.123 | S52: 1.937 | T52: 1.062 | U52: 5.343 | V52: 2.593 | W52: 15.789 | X52: 45.264 | Y52: 5.705 | Z52: 5.363 | AA52: 30.045 | AB52: 2.572 | AC52: 16.33 | AD52: 71.497 | AE52: 2.913 | AF52: 21.974 | AG52: 31.389 | AH52: 1.477
A53: 2021-03-16 | B53: 17.027 | C53: 13.398 | D53: 3.93 | E53: 17.623 | F53: 23.75 | G53: 3.381 | H53: 3.523 | I53: 26.2 | J53: 30.491 | K53: 2.829 | L53: 3.458 | M53: 7.132 | N53: 1.525 | O53: 6.669 | P53: 30.303 | Q53: 17.282 | R53: 20.177 | S53: 1.945 | T53: 1.065 | U53: 5.341 | V53: 2.593 | W53: 15.812 | X53: 45.184 | Y53: 5.704 | Z53: 5.361 | AA53: 30.226 | AB53: 2.583 | AC53: 16.332 | AD53: 71.493 | AE53: 2.933 | AF53: 21.973 | AG53: 31.389 | AH53: 1.48
A54: 2021-03-17 | B54: 16.956 | C54: 13.372 | D54: 3.89 | E54: 17.613 | F54: 23.674 | G54: 3.378 | H54: 3.518 | I54: 26.16 | J54: 30.529 | K54: 2.828 | L54: 3.453 | M54: 7.114 | N54: 1.522 | O54: 6.68 | P54: 30.263 | Q54: 17.279 | R54: 20.118 | S54: 1.943 | T54: 1.059 | U54: 5.33 | V54: 2.585 | W54: 15.742 | X54: 45.111 | Y54: 5.67 | Z54: 5.353 | AA54: 29.796 | AB54: 2.581 | AC54: 16.31 | AD54: 71.361 | AE54: 2.924 | AF54: 21.966 | AG54: 31.398 | AH54: 1.476
A55: 2021-03-18 | B55: 17.061 | C55: 13.38 | D55: 3.953 | E55: 17.648 | F55: 23.637 | G55: 3.376 | H55: 3.519 | I55: 26.17 | J55: 30.577 | K55: 2.829 | L55: 3.455 | M55: 7.105 | N55: 1.525 | O55: 6.657 | P55: 30.215 | Q55: 17.263 | R55: 20.119 | S55: 1.947 | T55: 1.067 | U55: 5.343 | V55: 2.59 | W55: 15.798 | X55: 45.121 | Y55: 5.657 | Z55: 5.356 | AA55: 29.697 | AB55: 2.577 | AC55: 16.343 | AD55: 71.17 | AE55: 2.983 | AF55: 21.969 | AG55: 31.353 | AH55: 1.485
A56: 2021-03-19 | B56: 17.008 | C56: 13.36 | D56: 3.978 | E56: 17.571 | F56: 23.613 | G56: 3.376 | H56: 3.514 | I56: 26.13 | J56: 30.467 | K56: 2.829 | L56: 3.449 | M56: 7.1 | N56: 1.525 | O56: 6.664 | P56: 30.307 | Q56: 17.259 | R56: 20.172 | S56: 1.944 | T56: 1.082 | U56: 5.35 | V56: 2.561 | W56: 15.743 | X56: 45.212 | Y56: 5.656 | Z56: 5.351 | AA56: 29.673 | AB56: 2.568 | AC56: 16.364 | AD56: 71.265 | AE56: 3.027 | AF56: 21.975 | AG56: 31.376 | AH56: 1.493
A57: 2021-03-22 | B57: 16.932 | C57: 13.332 | D57: 3.957 | E57: 17.496 | F57: 23.657 | G57: 3.361 | H57: 3.507 | I57: 26.075 | J57: 30.238 | K57: 2.815 | L57: 3.442 | M57: 7.107 | N57: 1.518 | O57: 6.617 | P57: 30.218 | Q57: 17.245 | R57: 20.096 | S57: 1.939 | T57: 1.058 | U57: 5.314 | V57: 2.571 | W57: 15.691 | X57: 45.077 | Y57: 5.666 | Z57: 5.337 | AA57: 29.325 | AB57: 2.567 | AC57: 16.304 | AD57: 70.816 | AE57: 2.77 | AF57: 21.863 | AG57: 31.216 | AH57: 1.485
A58: 2021-03-23 | B58: 16.91 | C58: 13.394 | D58: 3.998 | E58: 17.53 | F58: 23.673 | G58: 3.386 | H58: 3.523 | I58: 26.195 | J58: 30.389 | K58: 2.838 | L58: 3.457 | M58: 7.147 | N58: 1.531 | O58: 6.7 | P58: 30.424 | Q58: 17.664 | R58: 20.306 | S58: 1.951 | T58: 1.065 | U58: 5.347 | V58: 2.573 | W58: 15.484 | X58: 45.339 | Y58: 5.671 | Z58: 5.358 | AA58: 29.016 | AB58: 2.573 | AC58: 16.419 | AD58: 71.159 | AE58: 2.797 | AF58: 22.045 | AG58: 31.445 | AH58: 1.49
A59: 2021-03-24 | B59: 16.871 | C59: 13.387 | D59: 4.015 | E59: 17.611 | F59: 23.677 | G59: 3.398 | H59: 3.524 | I59: 26.205 | J59: 30.381 | K59: 2.853 | L59: 3.46 | M59: 7.18 | N59: 1.536 | O59: 6.734 | P59: 30.521 | Q59: 17.458 | R59: 20.378 | S59: 1.958 | T59: 1.069 | U59: 5.365 | V59: 2.58 | W59: 15.449 | X59: 45.601 | Y59: 5.662 | Z59: 5.361 | AA59: 29.049 | AB59: 2.578 | AC59: 16.463 | AD59: 71.48 | AE59: 2.788 | AF59: 22.162 | AG59: 31.611 | AH59: 1.495
A60: 2021-03-25 | B60: 16.868 | C60: 13.414 | D60: 3.919 | E60: 17.659 | F60: 23.755 | G60: 3.398 | H60: 3.528 | I60: 26.235 | J60: 30.48 | K60: 2.861 | L60: 3.464 | M60: 7.192 | N60: 1.541 | O60: 6.71 | P60: 30.588 | Q60: 17.513 | R60: 20.374 | S60: 1.956 | T60: 1.064 | U60: 5.361 | V60: 2.581 | W60: 15.477 | X60: 45.753 | Y60: 5.654 | Z60: 5.369 | AA60: 29.145 | AB60: 2.574 | AC60: 16.5 | AD60: 71.393 | AE60: 2.782 | AF60: 22.227 | AG60: 31.64 | AH60: 1.483
A61: 2021-03-26 | B61: 16.873 | C61: 13.338 | D61: 3.887 | E61: 17.607 | F61: 23.521 | G61: 3.385 | H61: 3.508 | I61: 26.085 | J61: 30.509 | K61: 2.849 | L61: 3.443 | M61: 7.175 | N61: 1.536 | O61: 6.644 | P61: 30.513 | Q61: 17.413 | R61: 20.169 | S61: 1.958 | T61: 1.076 | U61: 5.339 | V61: 2.576 | W61: 15.468 | X61: 45.656 | Y61: 5.61 | Z61: 5.337 | AA61: 29.146 | AB61: 2.56 | AC61: 16.442 | AD61: 71.172 | AE61: 2.76 | AF61: 22.139 | AG61: 31.439 | AH61: 1.475
A62: 2021-03-29 | B62: 16.939 | C62: 13.334 | D62: 3.837 | E62: 17.589 | F62: 23.548 | G62: 3.373 | H62: 3.507 | I62: 26.08 | J62: 30.639 | K62: 2.846 | L62: 3.444 | M62: 7.198 | N62: 1.532 | O62: 6.644 | P62: 30.454 | Q62: 17.272 | R62: 20.182 | S62: 1.954 | T62: 1.066 | U62: 5.344 | V62: 2.589 | W62: 15.518 | X62: 45.662 | Y62: 5.614 | Z62: 5.319 | AA62: 29.155 | AB62: 2.552 | AC62: 16.443 | AD62: 71.014 | AE62: 2.711 | AF62: 22.131 | AG62: 31.428 | AH62: 1.474
A63: 2021-03-30 | B63: 16.942 | C63: 13.356 | D63: 3.862 | E63: 17.633 | F63: 23.628 | G63: 3.386 | H63: 3.513 | I63: 26.125 | J63: 30.594 | K63: 2.862 | L63: 3.451 | M63: 7.19 | N63: 1.537 | O63: 6.676 | P63: 30.286 | Q63: 17.593 | R63: 20.174 | S63: 1.962 | T63: 1.078 | U63: 5.36 | V63: 2.596 | W63: 15.554 | X63: 45.818 | Y63: 5.609 | Z63: 5.309 | AA63: 29.296 | AB63: 2.549 | AC63: 16.518 | AD63: 71.197 | AE63: 2.664 | AF63: 22.249 | AG63: 31.597 | AH63: 1.49
A64: 2021-03-31 | B64: 16.964 | C64: 13.367 | D64: 3.875 | E64: 17.683 | F64: 23.615 | G64: 3.405 | H64: 3.515 | I64: 26.145 | J64: 30.676 | K64: 2.868 | L64: 3.453 | M64: 7.197 | N64: 1.535 | O64: 6.672 | P64: 30.463 | Q64: 17.654 | R64: 20.133 | S64: 1.974 | T64: 1.087 | U64: 5.377 | V64: 2.615 | W64: 15.593 | X64: 45.938 | Y64: 5.622 | Z64: 5.312 | AA64: 29.602 | AB64: 2.554 | AC64: 16.578 | AD64: 71.315 | AE64: 2.688 | AF64: 22.295 | AG64: 31.589 | AH64: 1.507
A65: 2021-04-01 | B65: 16.83 | C65: 13.336 | D65: 3.941 | E65: 17.643 | F65: 23.502 | G65: 3.379 | H65: 3.507 | I65: 26.085 | J65: 30.618 | K65: 2.855 | L65: 3.446 | M65: 7.21 | N65: 1.529 | O65: 6.662 | P65: 30.249 | Q65: 17.542 | R65: 20.06 | S65: 1.964 | T65: 1.092 | U65: 5.357 | V65: 2.598 | W65: 15.52 | X65: 45.703 | Y65: 5.659 | Z65: 5.314 | AA65: 29.114 | AB65: 2.538 | AC65: 16.507 | AD65: 71.02 | AE65: 2.72 | AF65: 22.206 | AG65: 31.47 | AH65: 1.516
A66: 2021-04-06 | B66: 16.828 | C66: 13.319 | D66: 3.91 | E66: 17.555 | F66: 23.535 | G66: 3.367 | H66: 3.502 | I66: 26.05 | J66: 30.521 | K66: 2.836 | L66: 3.441 | M66: 7.23 | N66: 1.52 | O66: 6.679 | P66: 30.046 | Q66: 17.425 | R66: 19.999 | S66: 1.969 | T66: 1.088 | U66: 5.338 | V66: 2.585 | W66: 15.493 | X66: 45.366 | Y66: 5.673 | Z66: 5.297 | AA66: 28.782 | AB66: 2.539 | AC66: 16.445 | AD66: 70.305 | AE66: 2.706 | AF66: 22.054 | AG66: 31.282 | AH66: 1.52
A67: 2021-04-07 | B67: 16.622 | C67: 13.251 | D67: 3.897 | E67: 17.295 | F67: 23.469 | G67: 3.335 | H67: 3.485 | I67: 25.915 | J67: 30.104 | K67: 2.802 | L67: 3.42 | M67: 7.206 | N67: 1.505 | O67: 6.604 | P67: 29.336 | Q67: 17.231 | R67: 19.851 | S67: 1.952 | T67: 1.08 | U67: 5.28 | V67: 2.577 | W67: 15.323 | X67: 44.685 | Y67: 5.663 | Z67: 5.269 | AA67: 28.068 | AB67: 2.531 | AC67: 16.283 | AD67: 69.528 | AE67: 2.666 | AF67: 21.813 | AG67: 30.992 | AH67: 1.499
A68: 2021-04-08 | B68: 16.657 | C68: 13.231 | D68: 3.89 | E68: 17.317 | F68: 23.487 | G68: 3.329 | H68: 3.479 | I68: 25.88 | J68: 29.988 | K68: 2.802 | L68: 3.412 | M68: 7.213 | N68: 1.5 | O68: 6.639 | P68: 29.208 | Q68: 17.139 | R68: 19.951 | S68: 1.953 | T68: 1.08 | U68: 5.268 | V68: 2.567 | W68: 15.355 | X68: 44.838 | Y68: 5.683 | Z68: 5.261 | AA68: 28.287 | AB68: 2.535 | AC68: 16.26 | AD68: 69.304 | AE68: 2.675 | AF68: 21.796 | AG68: 31.058 | AH68: 1.499
A69: 2021-04-09 | B69: 16.649 | C69: 13.262 | D69: 3.891 | E69: 17.352 | F69: 23.561 | G69: 3.329 | H69: 3.488 | I69: 25.94 | J69: 29.93 | K69: 2.805 | L69: 3.423 | M69: 7.245 | N69: 1.498 | O69: 6.636 | P69: 29.208 | Q69: 17.077 | R69: 19.893 | S69: 1.948 | T69: 1.084 | U69: 5.277 | V69: 2.565 | W69: 15.384 | X69: 44.909 | Y69: 5.714 | Z69: 5.273 | AA69: 28.264 | AB69: 2.55 | AC69: 16.272 | AD69: 69.375 | AE69: 2.677 | AF69: 21.821 | AG69: 31.056 | AH69: 1.499
A70: 2021-04-12 | B70: 16.67 | C70: 13.306 | D70: 3.858 | E70: 17.428 | F70: 23.659 | G70: 3.34 | H70: 3.5 | I70: 26.025 | J70: 30.081 | K70: 2.811 | L70: 3.439 | M70: 7.301 | N70: 1.498 | O70: 6.641 | P70: 29.139 | Q70: 17.133 | R70: 19.99 | S70: 1.944 | T70: 1.086 | U70: 5.289 | V70: 2.578 | W70: 15.389 | X70: 44.923 | Y70: 5.752 | Z70: 5.288 | AA70: 28.301 | AB70: 2.552 | AC70: 16.302 | AD70: 69.39 | AE70: 2.682 | AF70: 21.86 | AG70: 31.116 | AH70: 1.497
A71: 2021-04-13 | B71: 16.619 | C71: 13.301 | D71: 3.818 | E71: 17.333 | F71: 23.649 | G71: 3.342 | H71: 3.498 | I71: 26.015 | J71: 30.006 | K71: 2.813 | L71: 3.437 | M71: 7.237 | N71: 1.497 | O71: 6.62 | P71: 28.996 | Q71: 17.126 | R71: 19.979 | S71: 1.946 | T71: 1.083 | U71: 5.289 | V71: 2.558 | W71: 15.352 | X71: 44.971 | Y71: 5.695 | Z71: 5.285 | AA71: 28.323 | AB71: 2.548 | AC71: 16.28 | AD71: 69.228 | AE71: 2.686 | AF71: 21.871 | AG71: 31.177 | AH71: 1.493
A72: 2021-04-14 | B72: 16.669 | C72: 13.258 | D72: 3.804 | E72: 17.255 | F72: 23.503 | G72: 3.319 | H72: 3.487 | I72: 25.935 | J72: 29.834 | K72: 2.791 | L72: 3.426 | M72: 7.233 | N72: 1.484 | O72: 6.596 | P72: 28.867 | Q72: 17.096 | R72: 19.898 | S72: 1.944 | T72: 1.078 | U72: 5.25 | V72: 2.574 | W72: 15.418 | X72: 44.689 | Y72: 5.695 | Z72: 5.267 | AA72: 28.641 | AB72: 2.557 | AC72: 16.211 | AD72: 69.122 | AE72: 2.679 | AF72: 21.677 | AG72: 30.879 | AH72: 1.499
A73: 2021-04-15 | B73: 16.791 | C73: 13.262 | D73: 3.838 | E73: 17.342 | F73: 23.484 | G73: 3.32 | H73: 3.488 | I73: 25.94 | J73: 29.899 | K73: 2.789 | L73: 3.43 | M73: 7.228 | N73: 1.483 | O73: 6.603 | P73: 28.882 | Q73: 17.077 | R73: 19.93 | S73: 1.942 | T73: 1.083 | U73: 5.254 | V73: 2.583 | W73: 15.519 | X73: 44.711 | Y73: 5.693 | Z73: 5.267 | AA73: 28.127 | AB73: 2.561 | AC73: 16.238 | AD73: 69.396 | AE73: 2.671 | AF73: 21.669 | AG73: 30.942 | AH73: 1.522
A74: 2021-04-16 | B74: 16.77 | C74: 13.256 | D74: 3.846 | E74: 17.302 | F74: 23.547 | G74: 3.32 | H74: 3.486 | I74: 25.925 | J74: 29.873 | K74: 2.784 | L74: 3.426 | M74: 7.18 | N74: 1.485 | O74: 6.601 | P74: 29.053 | Q74: 17.067 | R74: 19.887 | S74: 1.942 | T74: 1.085 | U74: 5.242 | V74: 2.587 | W74: 15.501 | X74: 44.705 | Y74: 5.697 | Z74: 5.263 | AA74: 28.521 | AB74: 2.566 | AC74: 16.227 | AD74: 69.294 | AE74: 2.682 | AF74: 21.633 | AG74: 30.905 | AH74: 1.516
A75: 2021-04-19 | B75: 16.719 | C75: 13.241 | D75: 3.863 | E75: 17.221 | F75: 23.547 | G75: 3.307 | H75: 3.483 | I75: 25.9 | J75: 29.992 | K75: 2.771 | L75: 3.42 | M75: 7.189 | N75: 1.479 | O75: 6.597 | P75: 28.755 | Q75: 17.073 | R75: 19.91 | S75: 1.931 | T75: 1.084 | U75: 5.219 | V75: 2.597 | W75: 15.462 | X75: 44.482 | Y75: 5.695 | Z75: 5.258 | AA75: 28.225 | AB75: 2.565 | AC75: 16.172 | AD75: 68.929 | AE75: 2.665 | AF75: 21.52 | AG75: 30.774 | AH75: 1.511
A76: 2021-04-20 | B76: 16.721 | C76: 13.244 | D76: 3.864 | E76: 17.167 | F76: 23.492 | G76: 3.309 | H76: 3.483 | I76: 25.905 | J76: 30.015 | K76: 2.77 | L76: 3.421 | M76: 7.17 | N76: 1.483 | O76: 6.615 | P76: 28.613 | Q76: 17.054 | R76: 19.831 | S76: 1.929 | T76: 1.081 | U76: 5.224 | V76: 2.59 | W76: 15.481 | X76: 44.517 | Y76: 5.692 | Z76: 5.257 | AA76: 28.055 | AB76: 2.558 | AC76: 16.186 | AD76: 68.777 | AE76: 2.649 | AF76: 21.5 | AG76: 30.838 | AH76: 1.503
A77: 2021-04-21 | B77: 16.651 | C77: 13.237 | D77: 3.872 | E77: 17.104 | F77: 23.482 | G77: 3.319 | H77: 3.481 | I77: 25.89 | J77: 30.019 | K77: 2.778 | L77: 3.418 | M77: 7.146 | N77: 1.484 | O77: 6.622 | P77: 28.579 | Q77: 17.191 | R77: 19.947 | S77: 1.926 | T77: 1.084 | U77: 5.233 | V77: 2.579 | W77: 15.48 | X77: 44.527 | Y77: 5.682 | Z77: 5.255 | AA77: 28.123 | AB77: 2.551 | AC77: 16.211 | AD77: 68.745 | AE77: 2.638 | AF77: 21.563 | AG77: 30.942 | AH77: 1.511
A78: 2021-04-22 | B78: 16.601 | C78: 13.222 | D78: 3.887 | E78: 17.161 | F78: 23.437 | G78: 3.308 | H78: 3.477 | I78: 25.86 | J78: 29.777 | K78: 2.767 | L78: 3.415 | M78: 7.114 | N78: 1.479 | O78: 6.581 | P78: 28.609 | Q78: 17.126 | R78: 19.848 | S78: 1.921 | T78: 1.077 | U78: 5.22 | V78: 2.574 | W78: 15.405 | X78: 44.359 | Y78: 5.676 | Z78: 5.249 | AA78: 28.316 | AB78: 2.554 | AC78: 16.162 | AD78: 68.463 | AE78: 2.598 | AF78: 21.469 | AG78: 30.773 | AH78: 1.5
A79: 2021-04-23 | B79: 16.58 | C79: 13.216 | D79: 3.946 | E79: 17.162 | F79: 23.417 | G79: 3.301 | H79: 3.476 | I79: 25.845 | J79: 29.744 | K79: 2.76 | L79: 3.413 | M79: 7.111 | N79: 1.475 | O79: 6.581 | P79: 28.568 | Q79: 17.093 | R79: 19.885 | S79: 1.919 | T79: 1.08 | U79: 5.213 | V79: 2.573 | W79: 15.387 | X79: 44.323 | Y79: 5.665 | Z79: 5.248 | AA79: 28.609 | AB79: 2.548 | AC79: 16.142 | AD79: 68.276 | AE79: 2.571 | AF79: 21.421 | AG79: 30.739 | AH79: 1.502
A80: 2021-04-26 | B80: 16.632 | C80: 13.193 | D80: 3.915 | E80: 17.177 | F80: 23.315 | G80: 3.293 | H80: 3.47 | I80: 25.805 | J80: 29.669 | K80: 2.752 | L80: 3.411 | M80: 7.103 | N80: 1.474 | O80: 6.588 | P80: 28.551 | Q80: 17.089 | R80: 19.767 | S80: 1.92 | T80: 1.077 | U80: 5.211 | V80: 2.572 | W80: 15.43 | X80: 44.168 | Y80: 5.663 | Z80: 5.241 | AA80: 28.488 | AB80: 2.547 | AC80: 16.101 | AD80: 67.923 | AE80: 2.57 | AF80: 21.353 | AG80: 30.647 | AH80: 1.497
A81: 2021-04-27 | B81: 16.673 | C81: 13.239 | D81: 3.94 | E81: 17.278 | F81: 23.46 | G81: 3.305 | H81: 3.482 | I81: 25.895 | J81: 29.805 | K81: 2.76 | L81: 3.426 | M81: 7.138 | N81: 1.479 | O81: 6.611 | P81: 28.725 | Q81: 17.263 | R81: 19.786 | S81: 1.928 | T81: 1.075 | U81: 5.229 | V81: 2.588 | W81: 15.486 | X81: 44.258 | Y81: 5.673 | Z81: 5.258 | AA81: 28.615 | AB81: 2.554 | AC81: 16.163 | AD81: 68.295 | AE81: 2.611 | AF81: 21.425 | AG81: 30.789 | AH81: 1.494
A82: 2021-04-28 | B82: 16.667 | C82: 13.274 | D82: 3.954 | E82: 17.36 | F82: 23.508 | G82: 3.317 | H82: 3.491 | I82: 25.96 | J82: 29.847 | K82: 2.771 | L82: 3.434 | M82: 7.176 | N82: 1.483 | O82: 6.612 | P82: 28.882 | Q82: 17.446 | R82: 19.75 | S82: 1.93 | T82: 1.074 | U82: 5.243 | V82: 2.602 | W82: 15.537 | X82: 44.342 | Y82: 5.661 | Z82: 5.266 | AA82: 28.838 | AB82: 2.567 | AC82: 16.215 | AD82: 68.58 | AE82: 2.632 | AF82: 21.509 | AG82: 30.892 | AH82: 1.499
A83: 2021-04-29 | B83: 16.595 | C83: 13.198 | D83: 3.973 | E83: 17.323 | F83: 23.421 | G83: 3.29 | H83: 3.472 | I83: 25.815 | J83: 29.702 | K83: 2.741 | L83: 3.417 | M83: 7.163 | N83: 1.473 | O83: 6.556 | P83: 28.73 | Q83: 17.396 | R83: 19.525 | S83: 1.921 | T83: 1.065 | U83: 5.187 | V83: 2.604 | W83: 15.454 | X83: 44.016 | Y83: 5.653 | Z83: 5.243 | AA83: 28.665 | AB83: 2.553 | AC83: 16.057 | AD83: 68.202 | AE83: 2.589 | AF83: 21.281 | AG83: 30.53 | AH83: 1.494
A84: 2021-04-30 | B84: 16.614 | C84: 13.235 | D84: 4.01 | E84: 17.449 | F84: 23.536 | G84: 3.314 | H84: 3.481 | I84: 25.885 | J84: 29.798 | K84: 2.76 | L84: 3.43 | M84: 7.193 | N84: 1.483 | O84: 6.605 | P84: 28.929 | Q84: 17.303 | R84: 19.669 | S84: 1.923 | T84: 1.068 | U84: 5.232 | V84: 2.601 | W84: 15.465 | X84: 44.43 | Y84: 5.672 | Z84: 5.252 | AA84: 28.538 | AB84: 2.546 | AC84: 16.135 | AD84: 68.768 | AE84: 2.595 | AF84: 21.428 | AG84: 30.808 | AH84: 1.489
A85: 2021-05-03 | B85: 16.559 | C85: 13.157 | D85: 3.939 | E85: 17.413 | F85: 23.41 | G85: 3.308 | H85: 3.467 | I85: 25.785 | J85: 29.693 | K85: 2.756 | L85: 3.417 | M85: 7.164 | N85: 1.482 | O85: 6.603 | P85: 28.975 | Q85: 17.076 | R85: 19.55 | S85: 1.907 | T85: 1.056 | U85: 5.217 | V85: 2.575 | W85: 15.364 | X85: 44.397 | Y85: 5.666 | Z85: 5.234 | AA85: 28.417 | AB85: 2.533 | AC85: 16.072 | AD85: 68.648 | AE85: 2.577 | AF85: 21.41 | AG85: 30.744 | AH85: 1.482
A86: 2021-05-04 | B86: 16.56 | C86: 13.211 | D86: 3.929 | E86: 17.417 | F86: 23.54 | G86: 3.321 | H86: 3.476 | I86: 25.845 | J86: 29.783 | K86: 2.768 | L86: 3.427 | M86: 7.174 | N86: 1.49 | O86: 6.61 | P86: 29.091 | Q86: 17.369 | R86: 19.694 | S86: 1.909 | T86: 1.059 | U86: 5.214 | V86: 2.581 | W86: 15.309 | X86: 44.721 | Y86: 5.67 | Z86: 5.245 | AA86: 28.638 | AB86: 2.542 | AC86: 16.078 | AD86: 68.96 | AE86: 2.582 | AF86: 21.499 | AG86: 30.824 | AH86: 1.482
A87: 2021-05-05 | B87: 16.634 | C87: 13.192 | D87: 3.963 | E87: 17.509 | F87: 23.528 | G87: 3.319 | H87: 3.47 | I87: 25.8 | J87: 29.909 | K87: 2.766 | L87: 3.426 | M87: 7.174 | N87: 1.489 | O87: 6.579 | P87: 29.084 | Q87: 17.109 | R87: 19.665 | S87: 1.911 | T87: 1.063 | U87: 5.218 | V87: 2.584 | W87: 15.462 | X87: 44.703 | Y87: 5.637 | Z87: 5.236 | AA87: 28.73 | AB87: 2.531 | AC87: 16.092 | AD87: 69.066 | AE87: 2.575 | AF87: 21.487 | AG87: 30.766 | AH87: 1.492
A88: 2021-05-06 | B88: 16.624 | C88: 13.215 | D88: 3.996 | E88: 17.503 | F88: 23.599 | G88: 3.313 | H88: 3.475 | I88: 25.845 | J88: 29.819 | K88: 2.759 | L88: 3.431 | M88: 7.216 | N88: 1.497 | O88: 6.574 | P88: 29.06 | Q88: 17.127 | R88: 19.625 | S88: 1.911 | T88: 1.058 | U88: 5.199 | V88: 2.57 | W88: 15.463 | X88: 44.682 | Y88: 5.635 | Z88: 5.246 | AA88: 28.757 | AB88: 2.535 | AC88: 16.058 | AD88: 68.558 | AE88: 2.576 | AF88: 21.431 | AG88: 30.702 | AH88: 1.502
A89: 2021-05-07 | B89: 16.543 | C89: 13.13 | D89: 4.027 | E89: 17.481 | F89: 23.423 | G89: 3.301 | H89: 3.454 | I89: 25.68 | J89: 29.586 | K89: 2.742 | L89: 3.408 | M89: 7.174 | N89: 1.491 | O89: 6.511 | P89: 28.973 | Q89: 17.063 | R89: 19.49 | S89: 1.901 | T89: 1.061 | U89: 5.179 | V89: 2.565 | W89: 15.352 | X89: 44.462 | Y89: 5.614 | Z89: 5.213 | AA89: 28.703 | AB89: 2.536 | AC89: 15.988 | AD89: 68.32 | AE89: 2.567 | AF89: 21.295 | AG89: 30.53 | AH89: 1.494
A90: 2021-05-10 | B90: 16.582 | C90: 13.083 | D90: 4.011 | E90: 17.358 | F90: 23.397 | G90: 3.279 | H90: 3.441 | I90: 25.59 | J90: 29.686 | K90: 2.708 | L90: 3.393 | M90: 7.163 | N90: 1.481 | O90: 6.471 | P90: 28.67 | Q90: 16.958 | R90: 19.343 | S90: 1.891 | T90: 1.055 | U90: 5.119 | V90: 2.559 | W90: 15.349 | X90: 43.925 | Y90: 5.606 | Z90: 5.196 | AA90: 28.431 | AB90: 2.528 | AC90: 15.883 | AD90: 67.685 | AE90: 2.546 | AF90: 21.027 | AG90: 30.19 | AH90: 1.498
A91: 2021-05-11 | B91: 16.493 | C91: 13.075 | D91: 4.022 | E91: 17.364 | F91: 23.302 | G91: 3.272 | H91: 3.44 | I91: 25.575 | J91: 29.733 | K91: 2.706 | L91: 3.392 | M91: 7.137 | N91: 1.48 | O91: 6.401 | P91: 28.643 | Q91: 16.948 | R91: 19.358 | S91: 1.879 | T91: 1.06 | U91: 5.103 | V91: 2.55 | W91: 15.299 | X91: 43.922 | Y91: 5.618 | Z91: 5.191 | AA91: 28.419 | AB91: 2.529 | AC91: 15.861 | AD91: 67.583 | AE91: 2.537 | AF91: 21.015 | AG91: 30.312 | AH91: 1.506
A92: 2021-05-12 | B92: 16.44 | C92: 13.048 | D92: 4.02 | E92: 17.435 | F92: 23.277 | G92: 3.27 | H92: 3.432 | I92: 25.52 | J92: 29.746 | K92: 2.712 | L92: 3.39 | M92: 7.14 | N92: 1.484 | O92: 6.423 | P92: 28.691 | Q92: 16.934 | R92: 19.362 | S92: 1.873 | T92: 1.055 | U92: 5.106 | V92: 2.545 | W92: 15.233 | X92: 44.065 | Y92: 5.616 | Z92: 5.18 | AA92: 28.393 | AB92: 2.525 | AC92: 15.85 | AD92: 67.467 | AE92: 2.524 | AF92: 21.063 | AG92: 30.374 | AH92: 1.506
A93: 2021-05-13 | B93: 16.316 | C93: 13.078 | D93: 3.994 | E93: 17.44 | F93: 23.337 | G93: 3.281 | H93: 3.439 | I93: 25.575 | J93: 29.715 | K93: 2.726 | L93: 3.398 | M93: 7.167 | N93: 1.491 | O93: 6.43 | P93: 28.786 | Q93: 16.993 | R93: 19.32 | S93: 1.87 | T93: 1.051 | U93: 5.132 | V93: 2.525 | W93: 15.148 | X93: 44.236 | Y93: 5.624 | Z93: 5.191 | AA93: 28.5 | AB93: 2.514 | AC93: 15.866 | AD93: 67.529 | AE93: 2.492 | AF93: 21.172 | AG93: 30.497 | AH93: 1.495
A94: 2021-05-14 | B94: 16.305 | C94: 13.034 | D94: 3.986 | E94: 17.34 | F94: 23.275 | G94: 3.267 | H94: 3.428 | I94: 25.49 | J94: 29.613 | K94: 2.707 | L94: 3.39 | M94: 7.172 | N94: 1.481 | O94: 6.412 | P94: 28.702 | Q94: 16.892 | R94: 19.241 | S94: 1.861 | T94: 1.061 | U94: 5.096 | V94: 2.547 | W94: 15.199 | X94: 44.046 | Y94: 5.637 | Z94: 5.174 | AA94: 28.433 | AB94: 2.517 | AC94: 15.772 | AD94: 67.066 | AE94: 2.494 | AF94: 21.024 | AG94: 30.188 | AH94: 1.493
A95: 2021-05-17 | B95: 16.251 | C95: 13.036 | D95: 3.959 | E95: 17.312 | F95: 23.283 | G95: 3.26 | H95: 3.428 | I95: 25.495 | J95: 29.565 | K95: 2.703 | L95: 3.392 | M95: 7.224 | N95: 1.47 | O95: 6.393 | P95: 28.639 | Q95: 16.873 | R95: 19.228 | S95: 1.845 | T95: 1.054 | U95: 5.083 | V95: 2.532 | W95: 15.101 | X95: 43.809 | Y95: 5.613 | Z95: 5.176 | AA95: 28.345 | AB95: 2.51 | AC95: 15.708 | AD95: 66.783 | AE95: 2.51 | AF95: 20.996 | AG95: 30.208 | AH95: 1.481

Sheet List1 (hidden)
H1: 2021-01-01 | P1: počet dní
A2: 1 | H2: 2021-12-31 | K2: ano | L2: JE | N2: ZO PF UK | P2: =Příkaz!F14-Příkaz!F6+1 -> 1 | Q2: =VALUE(RIGHT(P2,1)) -> 1 | R2: =P2&" "&VLOOKUP(Q2,P6:Q15,2,FALSE) -> 1 den | V2: Země | W2: Měnový kód | X2: Měna | Y2: Základní sazby zahraničního stravného
A3: 2 | B3: V | C3: Vlak | K3: ne | L3: NENÍ | N3: jinak | R3: CZK | S3: CZK | T3: 0 | U3: 1 | V3: Afghánistán | W3: EUR | X3: euro | Y3: 45
A4: 3 | B4: A | C4: Autobus | I4: CZK | R4: EUR | S4: AUD | T4: 2 | U4: 1 | V4: Albánie | W4: EUR | X4: euro | Y4: 40
A5: 4 | B5: L | C5: Letadlo | I5: EUR | K5: Ne | R5: GBP | S5: BGN | T5: 3 | U5: 1 | V5: Alžírsko | W5: EUR | X5: euro | Y5: 45
A6: 5 | B6: SV | C6: Služební silniční vozidlo | I6: USD | K6: Ano, v hotovosti | N6: ZO PF UK | P6: 0 | Q6: dní | R6: PLN | S6: BRL | T6: 4 | U6: 1 | V6: Andorra | W6: EUR | X6: euro | Y6: 45
A7: 6 | B7: SJ | C7: Spolujízda | I7: GBP | K7: Ano, na bank. účet | N7: vyjíždějící | P7: 1 | Q7: den | R7: USD | S7: CAD | T7: 5 | U7: 1 | V7: Angola | W7: USD | X7: americký dolar | Y7: 60
A8: 7 | B8: VV | C8: Vlastní silniční vozidlo - náhrada za každý km jízdy | I8: AUD | P8: 2 | Q8: dny | S8: CHF | T8: 6 | U8: 1 | V8: Argentina | W8: USD | X8: americký dolar | Y8: 50
A9: 8 | B9: V - VV | C9: Vlastní vozidlo s náhradou výdajů za vlak | I9: BRL | P9: 3 | Q9: dny | S9: CNY | T9: 7 | U9: 1 | V9: Arménie | W9: EUR | X9: euro | Y9: 35
A10: 9 | B10: A - VV | C10: Vlastní vozidlo s náhradou výdajů za autobus | I10: BGN | P10: 4 | Q10: dny | S10: DKK | T10: 8 | U10: 1 | V10: Austrálie a Oceánie – ostrovní státy1) | W10: USD | X10: americký dolar | Y10: 60
A11: 10 | B11: L - VV | C11: Vlastní vozidlo s náhradou výdajů za letadlo | I11: CNY | P11: 5 | Q11: dní | S11: EUR | T11: 9 | U11: 1 | V11: Ázerbájdžán | W11: EUR | X11: euro | Y11: 40
A12: 11 | I12: DKK | P12: 6 | Q12: dní | S12: GBP | T12: 10 | U12: 1 | V12: Bahamy | W12: USD | X12: americký dolar | Y12: 55
A13: 12 | B13: S | I13: PHP | P13: 7 | Q13: dní | S13: HKD | T13: 11 | U13: 1 | V13: Bahrajn | W13: EUR | X13: euro | Y13: 45
A14: 13 | B14: O | I14: HKD | P14: 8 | Q14: dní | S14: HRK | T14: 12 | U14: 1 | V14: Bangladéš | W14: USD | X14: americký dolar | Y14: 50
A15: 14 | B15: V | I15: HRK | P15: 9 | Q15: dní | S15: HUF | T15: 13 | U15: 100 | V15: Belgie | W15: EUR | X15: euro | Y15: 50
A16: 15 | B16: SO | I16: INR | S16: IDR | T16: 14 | U16: 1000 | V16: Belize | W16: USD | X16: americký dolar | Y16: 50
A17: 16 | B17: SV | I17: IDR | S17: ILS | T17: 15 | U17: 1 | V17: Benin | W17: EUR | X17: euro | Y17: 45
A18: 17 | B18: OV | I18: ISK | S18: INR | T18: 16 | U18: 100 | V18: Bermudy | W18: USD | X18: americký dolar | Y18: 50
A19: 18 | B19: SOV | I19: ILS | S19: ISK | T19: 17 | U19: 100 | V19: Bělorusko | W19: EUR | X19: euro | Y19: 45
A20: 19 | I20: JPY | S20: JPY | T20: 18 | U20: 100 | V20: Bhútán | W20: USD | X20: americký dolar | Y20: 50
A21: 20 | I21: ZAR | S21: KRW | T21: 19 | U21: 100 | V21: Bolívie | W21: USD | X21: americký dolar | Y21: 50
A22: 21 | B22: 110 | C22: Z | D22: 1 | I22: CAD | S22: MXN | T22: 20 | U22: 1 | V22: Bosna a Hercegovina | W22: EUR | X22: euro | Y22: 40
A23: 22 | B23: 1010 | C23: P | D23: 2 | I23: KRW | S23: MYR | T23: 21 | U23: 1 | V23: Botswana | W23: USD | X23: americký dolar | Y23: 55
A24: 23 | B24: 1001 | C24: K | D24: 3 | I24: HUF | S24: NOK | T24: 22 | U24: 1 | V24: Brazílie | W24: USD | X24: americký dolar | Y24: 55
A25: 24 | B25: 101 | C25: S | D25: 4 | I25: MYR | S25: NZD | T25: 23 | U25: 1 | V25: Brunej | W25: USD | X25: americký dolar | Y25: 40
A26: 25 | B26: 0 | C26: 0 | D26: 5 | I26: MXN | S26: PHP | T26: 24 | U26: 100 | V26: Bulharsko | W26: EUR | X26: euro | Y26: 40
A27: 26 | I27: XDR | S27: PLN | T27: 25 | U27: 1 | V27: Burkina Faso | W27: EUR | X27: euro | Y27: 40
A28: 27 | I28: NOK | S28: RON | T28: 26 | U28: 1 | V28: Burundi | W28: USD | X28: americký dolar | Y28: 55
A29: 28 | I29: NZD | S29: RUB | T29: 27 | U29: 100 | V29: Čad | W29: EUR | X29: euro | Y29: 50
A30: 29 | I30: PLN | S30: SEK | T30: 28 | U30: 1 | V30: Černá Hora | W30: EUR | X30: euro | Y30: 35
A31: 30 | I31: RON | S31: SGD | T31: 29 | U31: 1 | V31: Čína | W31: EUR | X31: euro | Y31: 45
A32: 31 | I32: RUB | S32: THB | T32: 30 | U32: 100 | V32: Dánsko | W32: EUR | X32: euro | Y32: 55
A33: 32 | I33: SGD | S33: TRY | T33: 31 | U33: 1 | V33: Džibutsko | W33: EUR | X33: euro | Y33: 50
A34: 33 | I34: SEK | S34: USD | T34: 32 | U34: 1 | V34: Egypt | W34: EUR | X34: euro | Y34: 35
A35: 34 | I35: CHF | S35: XDR | T35: 33 | U35: 1 | V35: Ekvádor | W35: USD | X35: americký dolar | Y35: 50
A36: 35 | I36: THB | S36: ZAR | T36: 34 | U36: 1 | V36: Eritrea | W36: USD | X36: americký dolar | Y36: 50
A37: 36 | I37: TRY | T37: =RIGHT(S37,3) ->  | V37: Estonsko | W37: EUR | X37: euro | Y37: 40
A38: 37 | V38: Etiopie | W38: EUR | X38: euro | Y38: 45
A39: 38 | V39: Filipíny | W39: EUR | X39: euro | Y39: 40
A40: 39 | V40: Finsko | W40: EUR | X40: euro | Y40: 50
A41: 40 | V41: Francie | W41: EUR | X41: euro | Y41: 45
A42: 41 | V42: Francouzská Guyana | W42: EUR | X42: euro | Y42: 45
A43: 42 | V43: Gabon | W43: EUR | X43: euro | Y43: 50
A44: 43 | V44: Gambie | W44: EUR | X44: euro | Y44: 45
A45: 44 | V45: Ghana | W45: EUR | X45: euro | Y45: 50
A46: 45 | V46: Gibraltar | W46: EUR | X46: euro | Y46: 40
A47: 46 | V47: Gruzie | W47: EUR | X47: euro | Y47: 35
A48: 47 | V48: Guatemala | W48: USD | X48: americký dolar | Y48: 45
A49: 48 | V49: Guinea | W49: EUR | X49: euro | Y49: 45
A50: 49 | V50: Guinea-Bissau | W50: EUR | X50: euro | Y50: 45
A51: 50 | V51: Guyana | W51: USD | X51: americký dolar | Y51: 50
A52: 51 | V52: Honduras | W52: USD | X52: americký dolar | Y52: 45
A53: 52 | V53: Hongkong | W53: EUR | X53: euro | Y53: 45
A54: 53 | V54: Chile | W54: USD | X54: americký dolar | Y54: 55
A55: 54 | V55: Chorvatsko | W55: EUR | X55: euro | Y55: 35
A56: 55 | V56: Indie | W56: EUR | X56: euro | Y56: 45
A57: 56 | V57: Indonésie | W57: EUR | X57: euro | Y57: 40
A58: 57 | V58: Irák | W58: EUR | X58: euro | Y58: 40
A59: 58 | V59: Írán | W59: EUR | X59: euro | Y59: 40
A60: 59 | V60: Irsko | W60: EUR | X60: euro | Y60: 50
A61: 60 | V61: Island | W61: EUR | X61: euro | Y61: 60
A62: 61 | V62: Itálie, Vatikán a San Marino | W62: EUR | X62: euro | Y62: 50
V63: Izrael | W63: USD | X63: americký dolar | Y63: 55
V64: Japonsko | W64: USD | X64: americký dolar | Y64: 65
V65: Jemen | W65: EUR | X65: euro | Y65: 35
V66: Jihoafrická republika | W66: EUR | X66: euro | Y66: 40
V67: Jižní Súdán | W67: USD | X67: americký dolar | Y67: 55
V68: Jordánsko | W68: EUR | X68: euro | Y68: 45
T69: =RIGHT(S69,3) ->  | V69: Kambodža | W69: USD | X69: americký dolar | Y69: 45
V70: Kamerun | W70: EUR | X70: euro | Y70: 50
V71: Kanada | W71: USD | X71: americký dolar | Y71: 50
V72: Kapverdy | W72: EUR | X72: euro | Y72: 40
V73: Karibik – ostrovní státy2) | W73: USD | X73: americký dolar | Y73: 55
V74: Katar | W74: USD | X74: americký dolar | Y74: 50
V75: Kazachstán | W75: EUR | X75: euro | Y75: 45
V76: Keňa | W76: EUR | X76: euro | Y76: 45
V77: Kolumbie | W77: USD | X77: americký dolar | Y77: 45
V78: Komory | W78: USD | X78: americký dolar | Y78: 55
V79: Konžská republika (Brazzaville) | W79: USD | X79: americký dolar | Y79: 60
V80: Konžská demokratická republika (Kinshasa) | W80: EUR | X80: euro | Y80: 50
V81: Korejská lidově demokratická republika | W81: EUR | X81: euro | Y81: 45
V82: Korejská republika | W82: EUR | X82: euro | Y82: 50
V83: Kosovo | W83: EUR | X83: euro | Y83: 45
V84: Kostarika | W84: USD | X84: americký dolar | Y84: 50
V85: Kuba | W85: EUR | X85: euro | Y85: 55
V86: Kuvajt | W86: EUR | X86: euro | Y86: 40
V87: Kypr | W87: EUR | X87: euro | Y87: 40
V88: Kyrgyzstán | W88: EUR | X88: euro | Y88: 40
V89: Laos | W89: USD | X89: americký dolar | Y89: 45
V90: Lesotho | W90: USD | X90: americký dolar | Y90: 50
V91: Libanon | W91: USD | X91: americký dolar | Y91: 55
V92: Libérie | W92: EUR | X92: euro | Y92: 45
V93: Libye | W93: EUR | X93: euro | Y93: 45
V94: Lichtenštejnsko | W94: CHF | X94: švýcarský frank | Y94: 60
V95: Litva | W95: EUR | X95: euro | Y95: 40
V96: Lotyšsko | W96: EUR | X96: euro | Y96: 40
V97: Lucembursko | W97: EUR | X97: euro | Y97: 50
V98: Macao | W98: EUR | X98: euro | Y98: 45
V99: Madagaskar | W99: EUR | X99: euro | Y99: 40
V100: Maďarsko | W100: EUR | X100: euro | Y100: 35
V101: Malajsie | W101: USD | X101: americký dolar | Y101: 45
V102: Malawi | W102: USD | X102: americký dolar | Y102: 45
V103: Maledivy | W103: USD | X103: americký dolar | Y103: 55
V104: Mali | W104: EUR | X104: euro | Y104: 45
V105: Malta | W105: EUR | X105: euro | Y105: 50
V106: Maroko | W106: EUR | X106: euro | Y106: 40
V107: Mauretánie | W107: EUR | X107: euro | Y107: 40
V108: Mauricius | W108: USD | X108: americký dolar | Y108: 55
V109: Mexiko | W109: USD | X109: americký dolar | Y109: 50
V110: Moldavsko | W110: EUR | X110: euro | Y110: 40
V111: Monako | W111: EUR | X111: euro | Y111: 45
V112: Mongolsko | W112: EUR | X112: euro | Y112: 40
V113: Mosambik | W113: USD | X113: americký dolar | Y113: 50
V114: Myanmar (Barma) | W114: USD | X114: americký dolar | Y114: 50
V115: Namibie | W115: USD | X115: americký dolar | Y115: 50
V116: Německo | W116: EUR | X116: euro | Y116: 45
V117: Nepál | W117: USD | X117: americký dolar | Y117: 50
V118: Niger | W118: EUR | X118: euro | Y118: 50
V119: Nigérie | W119: EUR | X119: euro | Y119: 50
V120: Nikaragua | W120: USD | X120: americký dolar | Y120: 45
V121: Nizozemsko | W121: EUR | X121: euro | Y121: 50
V122: Norsko | W122: EUR | X122: euro | Y122: 60
V123: Nový Zéland | W123: USD | X123: americký dolar | Y123: 60
V124: Omán | W124: EUR | X124: euro | Y124: 50
V125: Pákistán | W125: EUR | X125: euro | Y125: 35
V126: Panama | W126: USD | X126: americký dolar | Y126: 45
V127: Paraguay | W127: USD | X127: americký dolar | Y127: 45
V128: Peru | W128: USD | X128: americký dolar | Y128: 50
V129: Pobřeží Slonoviny | W129: EUR | X129: euro | Y129: 40
V130: Polsko | W130: EUR | X130: euro | Y130: 40
V131: Portugalsko a Azory | W131: EUR | X131: euro | Y131: 40
V132: Rakousko | W132: EUR | X132: euro | Y132: 45
T133: =RIGHT(S133,3) ->  | V133: Rovníková Guinea | W133: EUR | X133: euro | Y133: 50
V134: Rumunsko | W134: EUR | X134: euro | Y134: 35
V135: Rusko | W135: EUR | X135: euro | Y135: 45
V136: Rwanda | W136: USD | X136: americký dolar | Y136: 55
V137: Řecko | W137: EUR | X137: euro | Y137: 40
V138: Salvador | W138: USD | X138: americký dolar | Y138: 45
V139: Saúdská Arábie | W139: EUR | X139: euro | Y139: 50
V140: Senegal | W140: EUR | X140: euro | Y140: 50
V141: Severní Makedonie | W141: EUR | X141: euro | Y141: 35
V142: Seychely | W142: USD | X142: americký dolar | Y142: 60
V143: Sierra Leone | W143: EUR | X143: euro | Y143: 40
V144: Singapur | W144: USD | X144: americký dolar | Y144: 60
V145: Spojené arabské emiráty | W145: USD | X145: americký dolar | Y145: 55
V146: Slovensko | W146: EUR | X146: euro | Y146: 35
V147: Slovinsko | W147: EUR | X147: euro | Y147: 40
V148: Somálsko | W148: USD | X148: americký dolar | Y148: 55
V149: Spojené státy americké | W149: USD | X149: americký dolar | Y149: 60
V150: Srbsko | W150: EUR | X150: euro | Y150: 35
V151: Srí Lanka | W151: USD | X151: americký dolar | Y151: 50
V152: Středoafrická republika | W152: USD | X152: americký dolar | Y152: 50
V153: Súdán | W153: USD | X153: americký dolar | Y153: 55
V154: Surinam | W154: USD | X154: americký dolar | Y154: 50
V155: Svatý Tomáš a Princův ostrov | W155: EUR | X155: euro | Y155: 40
V156: Svazijsko | W156: USD | X156: americký dolar | Y156: 55
V157: Sýrie | W157: EUR | X157: euro | Y157: 50
V158: Španělsko | W158: EUR | X158: euro | Y158: 45
V159: Švédsko | W159: EUR | X159: euro | Y159: 55
V160: Švýcarsko | W160: CHF | X160: švýcarský frank | Y160: 75
V161: Tádžikistán | W161: EUR | X161: euro | Y161: 40
V162: Tanzanie | W162: USD | X162: americký dolar | Y162: 55
V163: Thajsko | W163: EUR | X163: euro | Y163: 40
V164: Tchaj-wan | W164: EUR | X164: euro | Y164: 45
V165: Togo | W165: EUR | X165: euro | Y165: 40
V166: Tunisko | W166: EUR | X166: euro | Y166: 45
V167: Turecko | W167: EUR | X167: euro | Y167: 40
V168: Turkmenistán | W168: EUR | X168: euro | Y168: 45
V169: Uganda | W169: USD | X169: americký dolar | Y169: 55
V170: Ukrajina | W170: EUR | X170: euro | Y170: 45
V171: Uruguay | W171: USD | X171: americký dolar | Y171: 50
V172: Uzbekistán | W172: EUR | X172: euro | Y172: 40
V173: Velká Británie | W173: GBP | X173: anglická libra | Y173: 45
V174: Venezuela | W174: USD | X174: americký dolar | Y174: 65
V175: Vietnam | W175: EUR | X175: euro | Y175: 40
V176: Zambie | W176: USD | X176: americký dolar | Y176: 55
V177: Zimbabwe | W177: USD | X177: americký dolar | Y177: 50
V178: Ostatní země neuvedené v příloze | W178: EUR | X178: euro | Y178: 35
